{"text_format":"1","workbook":"xlsx","n_sheets":9,"sheets":["Income","Reserve Accounts","                   Expenses","Balance Sheet","Opening Debtors & Creditors","Income & Expenditure (2)","Notes 2016-17","Cantor Accounts","League Calculations"],"not_rendered":{"charts":0,"images":0,"macros":0,"external_links":1,"defined_names":11,"comments":0,"pivot_tables":0},"unopened":[],"bounds":{"document_bytes":16777216,"sheet_cells":100000,"rows_first":2000,"rows_last":500,"rows_between":2000,"halvings":0,"cell_chars":16384,"cell_head_chars":4096},"cells_cut":0,"cells_raw":0,"read":"whole","date_system":"1904"}

{"sheet":"Income","index":0,"n_rows":190,"n_cols":32,"rows_kept":190,"cut":false,"hidden":false,"merged":[]}
["Manchester County Bridge Association ",null,null,null,null,null,null,null,null,null,"Accounts 2015 - 2016"]
[]
["Income",null,null,null,null,null,null,null,null,null,null,null,null,null,null,null,null,null,"(March)","(July)"]
[null,null,null,null,null,null,null,null,null,null,null,null,"League & ",null,null,null,null,"Merville","Pairs","Teams",null,null,"Summer","Autumn",null,null,"Players Progress","EBU delegate",null,"Outstanding","Prior Year"]
[null," ",null,null,null,null,"EBU","EBU","EBU P2P","EBU P2P","MCBA","EBU","Cup","Higson      ","Over","EBU","Gazette","Goldstone","Green","Green","Manchester","Ben","Intermediate","Intermediate","Cantor Cup","Newcomers","and Kevin Comrie","Expenses","Seminars","from previous ","Corrections","Totals"]
["Date","Reference","Details","Other","Cash","Bank","Direct Membs","P2P (clubs)","League","Cup","Affiliates","League",">4 players","Cup & Plate","Payment","BFA","Trophy","Trophy","Points","Points","Congress","Franks","Pairs","Pairs",null,"League","Cups",null,null,"Year"]
[]
[null,null,"B/Fwd Balance",null,14,3760.23,null,null,null,null,null,null,null,null,null,null,null,null,null,null,null,null,null,null,null,null,null,null,null,null,null,{"$f":"F8+E8","v":3774.23}]
["League Creditors @31/03/2015 (overpaid us)",null,null,null,null,null,null,null,null,null,null,null,null,null,null,null,null,null,null,null,null,null,null,null,null,null,null,null,null,null,null,{"$f":"SUM(G9:AE9)","v":0}]
[null,null,"Red Bull",10,null,null,null,null,null,null,null,null,null,null,null,null,null,null,null,null,null,null,null,null,null,null,null,null,null,10,null,10]
[null,null,"Cheshire Cheeses",4,null,null,null,null,null,null,null,null,null,null,null,null,null,null,null,null,null,null,null,null,null,null,null,null,null,4,null,4]
[null,null,"Sedgeley",5,null,null,null,null,null,null,null,null,null,null,null,null,null,null,null,null,null,null,null,null,null,null,null,null,null,5,null,5]
[null,null,"New Connections",10,null,null,null,null,null,null,null,null,null,null,null,null,null,null,null,null,null,null,null,null,null,null,null,null,null,10,null,10]
[null,null,"Rejuvenated",11,null,null,null,null,null,null,null,null,null,null,null,null,null,null,null,null,null,null,null,null,null,null,null,null,null,11,null,11]
[null,null,"Manchester Cardinals",5,null,null,null,null,null,null,null,null,null,null,null,null,null,null,null,null,null,null,null,null,null,null,null,null,null,5,null,5]
[null,null,"Astra Zenaca Stars",10,null,null,null,null,null,null,null,null,null,null,null,null,null,null,null,null,null,null,null,null,null,null,null,null,null,10,null,10]
[null,null,"Four Dummies",15,null,null,null,null,null,null,null,null,null,null,null,null,null,null,null,null,null,null,null,null,null,null,null,null,null,15,null,15]
[null,null,"Touchung the Void",5,null,null,null,null,null,null,null,null,null,null,null,null,null,null,null,null,null,null,null,null,null,null,null,null,null,5,null,5]
["League Debtors @31/03/2015 ",null,"         (underpaid us)",null,null,null,null,null,null,null,null,null,null,null,null,null,null,null,null,null,null,null,null,null,null,null,null,null,null,null,null,0]
[null,null,"Agamemnon",-5,null,null,null,null,null,null,null,null,null,null,null,null,null,null,null,null,null,null,null,null,null,null,null,null,null,-5,null,-5]
[null,null,"Petersfield",-36,null,null,null,null,null,null,null,null,null,null,null,null,null,null,null,null,null,null,null,null,null,null,null,null,null,-36,null,-36]
[null,null,"Imps R Us",-6,null,null,null,null,null,null,null,null,null,null,null,null,null,null,null,null,null,null,null,null,null,null,null,null,null,-6,null,-6]
[null,null,"Manchester S",-6,null,null,null,null,null,null,null,null,null,null,null,null,null,null,null,null,null,null,null,null,null,null,null,null,null,-6,null,-6]
[null,null,"Double Trouble",-12,null,null,null,null,null,null,null,null,null,null,null,null,null,null,null,null,null,null,null,null,null,null,null,null,null,-12,null,-12]
[null,null,"The Unconventionals",-5,null,null,null,null,null,null,null,null,null,null,null,null,null,null,null,null,null,null,null,null,null,null,null,null,null,-5,null,-5]
[null,null,"Bombay Sapphires",-35,null,null,null,null,null,null,null,null,null,null,null,null,null,null,null,null,null,null,null,null,null,null,null,null,null,-35,null,-35]
[null,null,"Adlan",-24,null,null,null,null,null,null,null,null,null,null,null,null,null,null,null,null,null,null,null,null,null,null,null,null,null,-24,null,-24]
[null,null,"Jems",-25,null,null,null,null,null,null,null,null,null,null,null,null,null,null,null,null,null,null,null,null,null,null,null,null,null,-25,null,-25]
[null,null,"Newcomers",-25,null,null,null,null,null,null,null,null,null,null,null,null,null,null,null,null,null,null,null,null,null,null,null,null,null,-25,null,-25]
[null,null,null,null,null,null,null,null,null,null,null,null,null,null,null,null,null,null,null,null,null,null,null,null,null,null,null,null,null,null,null,0]
["14/04/2016","Direct","EBU-April P2P",null,null,317.58999999999997,null,317.58999999999997,null,null,null,null,null,null,null,null,null,null,null,null,null,null,null,null,null,null,null,null,null,null,null,317.58999999999997]
["21/04/2016","Direct","EBU-Direct Members",null,null,65,65,null,null,null,null,null,null,null,null,null,null,null,null,null,null,null,null,null,null,null,null,null,null,null,null,65]
["2016-12-05","Direct","EBU-Direct Members",null,null,140,140,null,null,null,null,null,null,null,null,null,null,null,null,null,null,null,null,null,null,null,null,null,null,null,null,140]
["2016-02-06","Direct","League last yr….Newcomers",null,null,25,null,null,null,null,null,null,null,null,null,null,null,null,null,null,null,null,null,null,null,null,null,null,null,25,null,25]
["2016-02-06","Direct","EBU-May P2P",null,null,125.09,null,125.09,null,null,null,null,null,null,null,null,null,null,null,null,null,null,null,null,null,null,null,null,null,null,null,125.09]
["2016-09-06","Direct","EBU-Direct Members",null,null,10,10,null,null,null,null,null,null,null,null,null,null,null,null,null,null,null,null,null,null,null,null,null,null,null,null,10]
["14/06/2016",10175,"Summer Intermediate Pairs-chqs",null,null,240,null,null,null,null,null,null,null,null,null,null,null,null,null,null,null,null,240,null,null,null,null,null,null,null,null,240]
["30/06/2016","Direct","EBU P2P Jun",null,null,313.74,null,313.74,null,null,null,null,null,null,null,null,null,null,null,null,null,null,null,null,null,null,null,null,null,null,null,313.74]
["2016-05-07","Direct","League-The 4 Dummies",null,null,55,null,null,5,5,null,30,5,10,15,null,null,null,null,null,null,null,null,null,null,null,null,null,null,-15,null,55]
[null,null,null,null,null,null,null,null,null,null,null,null,null,null,null,null,null,null,null,null,null,null,null,null,null,null,null,null,null,null,null,0]
["2016-11-07","Direct","League-Last Minute.bid-A.H.Wiseberg",null,null,50,null,null,5,null,null,30,null,null,15,null,null,null,null,null,null,null,null,null,null,null,null,null,null,null,null,50]
["13/07/2016","Direct","League-Eureka-A.Morris",null,null,35,null,null,5,null,null,30,null,null,null,null,null,null,null,null,null,null,null,null,null,null,null,null,null,null,null,35]
["14/07/2016","Direct","EBU-Direct Members",null,null,10,10,null,null,null,null,null,null,null,null,null,null,null,null,null,null,null,null,null,null,null,null,null,null,null,null,10]
["15/07/2016","Direct","League-Radbroke bandits-J PC Regan",null,null,35,null,null,5,null,null,30,null,null,null,null,null,null,null,null,null,null,null,null,null,null,null,null,null,null,null,35]
["15/07/2016","Direct","League-The Transfers-J S Marks",null,null,40,null,null,5,null,null,30,5,null,null,null,null,null,null,null,null,null,null,null,null,null,null,null,null,null,null,40]
["19/07/2016","Direct","League - Sedgley-B&M Kaye",null,null,72,null,null,5,5,18,30,5,10,4,null,null,null,null,null,null,null,null,null,null,null,null,null,null,-5,null,72]
["19/07/2016","Direct","League - Red Bull - MJ &E Rosenbaum",null,null,50,null,null,5,5,null,30,null,10,10,null,null,null,null,null,null,null,null,null,null,null,null,null,null,-10,null,50]
["20/07/16","Direct","League-New Connections-R Hopton",null,null,60,null,null,5,5,null,30,10,20,null,null,null,null,null,null,null,null,null,null,null,null,null,null,null,-10,null,60]
["20/07/16","Direct","League-Winning Ways-S Triggs",null,null,35,null,null,5,null,null,30,null,null,null,null,null,null,null,null,null,null,null,null,null,null,null,null,null,null,null,35]
["20/07/16","Direct","League-Newcomers-Stephen Harlow",null,null,35,null,null,5,null,null,30,null,null,null,null,null,null,null,null,null,null,null,null,null,null,null,null,null,null,null,35]
["20/07/16","Direct","League-Hindsight Convention-Alan Tranter",null,null,67,null,null,5,5,12,30,5,10,null,null,null,null,null,null,null,null,null,null,null,null,null,null,null,null,null,67]
["21/07/16","Direct","League-Midland Railway-AS Townsend",null,null,55,null,null,5,5,null,30,5,10,null,null,null,null,null,null,null,null,null,null,null,null,null,null,null,null,null,55]
["21/07/16","Direct","League-Double Diamonds-N Catterall",null,null,35,null,null,5,null,null,30,null,null,null,null,null,null,null,null,null,null,null,null,null,null,null,null,null,null,null,35]
["22/07/16","Direct","EBU P2P July",null,null,113.96,null,113.96,null,null,null,null,null,null,null,null,null,null,null,null,null,null,null,null,null,null,null,null,null,null,null,{"$f":"SUM(H54:AE54)","v":113.96}]
["22/07/16","Direct","League-Petersfield-Thornton-Chan",null,null,100,null,null,5,5,null,30,5,10,9,null,null,null,null,null,null,null,null,null,null,null,null,null,null,36,null,{"$f":"SUM(G55:AE55)","v":100}]
["20/07/16","Direct","League-Touching the Void-A Oliver",null,null,35,null,null,5,null,null,30,null,null,5,null,null,null,null,null,null,null,null,null,null,null,null,null,null,-5,null,35]
["220/07/16","Direct","League-Tricksters-K Higgins",null,null,50,null,null,5,5,null,30,null,10,null,null,null,null,null,null,null,null,null,null,null,null,null,null,null,null,null,50]
["25/07/16","Direct","League-Manchester A-R Ashleigh",null,null,50,null,null,5,5,null,30,null,10,null,null,null,null,null,null,null,null,null,null,null,null,null,null,null,null,null,50]
["25/07/16","Direct","League-Inverted Minors-JE Blakey",null,null,60,null,null,5,5,null,30,10,10,null,null,null,null,null,null,null,null,null,null,null,null,null,null,null,null,null,60]
["25/07/16","Direct","League-Leaders with Attitude-H Potts",null,null,50,null,null,5,5,null,30,null,10,null,null,null,null,null,null,null,null,null,null,null,null,null,null,null,null,null,50]
["26/07/16","Direct","League-The Unconventionals-P Hegarty",null,null,40,null,null,5,null,null,30,5,null,null,null,null,null,null,null,null,null,null,null,null,null,null,null,null,null,null,40]
["27/07/16",100745,"G.P. Teams - entry fees",2080,null,2000,null,null,null,null,null,null,null,null,null,null,null,null,null,2080,null,null,null,null,null,null,null,null,null,null,null,2080]
[null,null,"J.Morris-2nd prize for last 2 years Goldstone Cup",-80,null,null,null,null,null,null,null,null,null,null,null,null,null,-80,null,null,null,null,null,null,null,null,null,null,null,null,null,-80]
["27/07/16",100746,"League Fees:",null,null,295,null,null,null,null,null,null,null,null,null,null,null,null,null,null,null,null,null,null,null,null,null,null,null,null,null,0]
[null,null,"Diamond Dames-Mrs Scholes",40,null,null,null,null,5,null,null,30,5,null,null,null,null,null,null,null,null,null,null,null,null,null,null,null,null,null,null,40]
[null,null,"Altrincham A-Hull",55,null,null,null,null,5,5,null,30,5,10,null,null,null,null,null,null,null,null,null,null,null,null,null,null,null,null,null,55]
[null,null,"Smash the System",50,null,null,null,null,5,5,null,30,null,10,null,null,null,null,null,null,null,null,null,null,null,null,null,null,null,null,null,50]
[null,null,"Dash",55,null,null,null,null,5,5,null,30,5,10,null,null,null,null,null,null,null,null,null,null,null,null,null,null,null,null,null,55]
[null,null,"Three Reds & a rebel",35,null,null,null,null,5,null,null,30,null,null,null,null,null,null,null,null,null,null,null,null,null,null,null,null,null,null,null,35]
[null,null,"Reina de Corazones",60,null,null,null,null,5,5,null,30,10,10,null,null,null,null,null,null,null,null,null,null,null,null,null,null,null,null,null,60]
["27/07/16",100747,"League Fees:",null,null,262,null,null,null,null,null,null,null,null,null,null,null,null,null,null,null,null,null,null,null,null,null,null,null,null,null,0]
[null,null,"Double Trouble-Berry",47,null,null,null,null,5,null,12,30,null,null,-12,null,null,null,null,null,null,null,null,null,null,null,null,null,null,12,null,47]
[null,null,"The Enigmas-Mrs H saunders",70,null,null,null,null,5,5,null,30,20,10,null,null,null,null,null,null,null,null,null,null,null,null,null,null,null,null,null,70]
[null,null,"Grasshoppers-A Smalley",40,null,null,null,null,5,null,null,30,5,null,null,null,null,null,null,null,null,null,null,null,null,null,null,null,null,null,null,40]
[null,null,"Isolated Menaces-R Goldenfield",50,null,null,null,null,5,5,null,30,null,10,null,null,null,null,null,null,null,null,null,null,null,null,null,null,null,null,null,50]
[null,null,"Splinter Group- J Moran",55,null,null,null,null,5,5,null,30,5,10,null,null,null,null,null,null,null,null,null,null,null,null,null,null,null,null,null,55]
["27/07/16",100748,"As follows:",null,null,15,null,null,null,null,null,null,null,null,null,null,null,null,null,null,null,null,null,null,null,null,null,null,null,null,null,0]
[null,null,"Banking yr-end cash (last yr Hydrangeas, not provided for)",10,-10,null,null,null,null,null,null,null,null,null,null,null,null,null,null,null,null,null,null,null,null,null,null,null,null,null,null,0]
[null,null,"League-The Unconventionals-P Hegarty",5,null,null,null,null,null,null,null,null,null,null,null,null,null,null,null,null,null,null,null,null,null,null,null,null,null,5,null,5]
["27/07/16","Direct","League-Bury Athenaeum-Alan Purdy",null,null,85,null,null,5,5,30,30,5,10,null,null,null,null,null,null,null,null,null,null,null,null,null,null,null,null,null,85]
["28/07/16","Direct","League-Biddables-M McPhillips",null,null,40,null,null,5,null,null,30,5,null,null,null,null,null,null,null,null,null,null,null,null,null,null,null,null,null,null,40]
["29/07/16","Direct","League-Jems-P&M Elton",null,null,75,null,null,5,null,null,30,null,null,15,null,null,null,null,null,null,null,null,null,null,null,null,null,null,25,null,75]
["2016-03-08",100749,"As follows:",null,null,179,null,null,null,null,null,null,null,null,null,null,null,null,null,null,null,null,null,null,null,null,null,null,null,null,null,0]
[null,null,"B Seminar income",70,null,null,null,null,null,null,null,null,null,null,null,null,null,null,null,null,null,null,null,null,null,null,null,null,70,null,null,70]
[null,null,"Banking yr-end cash (last yr Conq. Hearts)",4,-4,null,null,null,null,null,null,null,null,null,null,null,null,null,null,null,null,null,null,null,null,null,null,null,null,null,null,0]
[null,null,"League-Rueful Rabbits-J Gilder",35,null,null,null,null,5,null,null,30,null,null,null,null,null,null,null,null,null,null,null,null,null,null,null,null,null,null,null,35]
[null,null,"League-Upper Cut-S. Ward",35,null,null,null,null,5,null,null,30,null,null,null,null,null,null,null,null,null,null,null,null,null,null,null,null,null,null,null,{"$f":"SUM(G87:AE87)","v":35}]
[null,null,"League-Bank-Pearce",35,null,null,null,null,5,null,null,30,null,null,null,null,null,null,null,null,null,null,null,null,null,null,null,null,null,null,null,35]
["2016-03-08","Direct","League-Bare Bones-E Levy",null,null,50,null,null,null,null,null,null,null,null,50,null,null,null,null,null,null,null,null,null,null,null,null,null,null,null,null,50]
["2016-03-08","Direct","League-Mouldy Mutton Tour",null,null,35,null,null,5,null,null,30,null,null,null,null,null,null,null,null,null,null,null,null,null,null,null,null,null,null,null,35]
["2016-04-08","Direct","League-Adlan-",null,null,35,null,null,5,null,null,30,null,null,-24,null,null,null,null,null,null,null,null,null,null,null,null,null,null,24,null,35]
["2016-05-08","Direct","League-Tempo-Robert Cooke",null,null,60,null,null,5,5,null,30,10,10,null,null,null,null,null,null,null,null,null,null,null,null,null,null,null,null,null,60]
["56gh","Direct","League-The North Star-MD Hart",null,null,41,null,null,5,null,6,30,null,null,null,null,null,null,null,null,null,null,null,null,null,null,null,null,null,null,null,41]
["2016-08-08","Direct","League-Overtrick Lunatics-Georgiou FF",null,null,35,null,null,5,null,null,30,null,null,null,null,null,null,null,null,null,null,null,null,null,null,null,null,null,null,null,35]
["2016-08-08","Direct","League- 4 Bridgemates-M Harris",null,null,35,null,null,5,null,null,30,null,null,null,null,null,null,null,null,null,null,null,null,null,null,null,null,null,null,null,35]
["2016-10-08","Direct","League-Hydrangeas-P Taylor",null,null,60,null,null,5,5,null,30,10,10,null,null,null,null,null,null,null,null,null,null,null,null,null,null,null,null,null,60]
["2016-11-08","Direct","League-Chorlton Challengers-Pardoe",null,null,35,null,null,5,null,null,30,null,null,null,null,null,null,null,null,null,null,null,null,null,null,null,null,null,null,null,35]
["15/08/16","Direct","League-Manchester S-Comrie",null,null,50,null,null,5,5,null,30,null,10,-6,null,null,null,null,null,null,null,null,null,null,null,null,null,null,6,null,50]
["15/08/16","Direct","League-Astra Zenaca Stars-D Milne",null,null,85,null,null,5,5,null,30,10,10,35,null,null,null,null,null,null,null,null,null,null,null,null,null,null,-10,null,85]
["18/08/16","Direct","League-Skaters-K Sandler",null,null,35,null,null,5,null,null,30,null,null,null,null,null,null,null,null,null,null,null,null,null,null,null,null,null,null,null,35]
["18/08/16","Direct","League-Trafford Tigers-J Santo",null,null,40,null,null,5,null,null,30,5,null,null,null,null,null,null,null,null,null,null,null,null,null,null,null,null,null,null,40]
["18/08/16","Direct","EBU-P2P -July",null,null,323.68,null,323.68,null,null,null,null,null,null,null,null,null,null,null,null,null,null,null,null,null,null,null,null,null,null,null,323.68]
["26/08/16","Direct","League-Cheshire Cheeses-V Roberts",null,null,112,null,null,5,5,48,30,20,10,-2,null,null,null,null,null,null,null,null,null,null,null,null,null,null,-4,null,112]
["30/08/16","Direct","League-City Aces-H Weinstock",null,null,79,null,null,5,5,30,30,10,10,-11,null,null,null,null,null,null,null,null,null,null,null,null,null,null,null,null,79]
["2016-02-09","Direct","League-Imps R Us",null,null,75,null,null,5,null,30,30,10,null,-6,null,null,null,null,null,null,null,null,null,null,null,null,null,null,6,null,75]
["2016-05-09","Direct","League-Team Mayhem-N Thomas",null,null,62,null,null,5,5,12,30,null,10,null,null,null,null,null,null,null,null,null,null,null,null,null,null,null,null,null,62]
["2016-06-09","Direct","League - Agememnon",null,null,55,null,null,5,5,null,30,5,10,-5,null,null,null,null,null,null,null,null,null,null,null,null,null,null,5,null,55]
["15/09/2016","Direct","EBU-P2p August",null,null,145.6,null,145.6,null,null,null,null,null,null,null,null,null,null,null,null,null,null,null,null,null,null,null,null,null,null,null,145.6]
["22/09/2016","Direct","League-City Aces-H Weinstock",null,null,11,null,null,null,null,null,null,null,null,11,null,null,null,null,null,null,null,null,null,null,null,null,null,null,null,null,11]
["17/10/2016","Direct","League-Mouldy Mutton Tour",null,null,15,null,null,null,5,null,null,null,10,null,null,null,null,null,null,null,null,null,null,null,null,null,null,null,null,null,15]
["17/10/2016","Direct","League-Trafford Tigers-J Santo",null,null,10,null,null,null,null,null,null,10,null,null,null,null,null,null,null,null,null,null,null,null,null,null,null,null,null,null,10]
["18/10/2016","Direct","League-Rejuvenated-J.Fitzgerald",null,null,74,null,null,5,5,18,30,15,10,2,null,null,null,null,null,null,null,null,null,null,null,null,null,null,-11,null,74]
["20/10/2016","Direct","EBU-P2P September",null,null,320.81,null,320.81,null,null,null,null,null,null,null,null,null,null,null,null,null,null,null,null,null,null,null,null,null,null,null,320.81]
["27/10/2016","Direct","EBU-Direct Members",null,null,5,5,null,null,null,null,null,null,null,null,null,null,null,null,null,null,null,null,null,null,null,null,null,null,null,null,5]
["28/10/2016",100750,"League-Monton Misfits",88,null,null,null,null,5,5,18,30,20,10,null,null,null,null,null,null,null,null,null,null,null,null,null,null,null,null,null,88]
[null,null,"League-Altrincham Z",35,null,null,null,null,5,null,null,30,null,null,null,null,null,null,null,null,null,null,null,null,null,null,null,null,null,null,null,35]
[null,null,"League-Proteus-JC Roberts",60,null,null,null,null,5,5,null,30,10,10,null,null,null,null,null,null,null,null,null,null,null,null,null,null,null,null,null,60]
[null,null,"League-Curry Eaters-P.Hackett",56,null,239,null,null,5,5,6,30,10,10,-10,null,null,null,null,null,null,null,null,null,null,null,null,null,null,null,null,56]
["28/10/2016",100801,"League-Ashton Aces-G. Bickley",68,null,null,null,null,5,5,12,30,null,10,6,null,null,null,null,null,null,null,null,null,null,null,null,null,null,null,null,{"$f":"SUM(G119:AE119)","v":68}]
[null,null,"League-The Bridgers-Ms Kirwan",40,null,null,null,null,5,null,null,30,15,null,-10,null,null,null,null,null,null,null,null,null,null,null,null,null,null,null,null,40]
[null,null,"League-Smash the System",5,null,null,null,null,null,null,null,null,5,null,null,null,null,null,null,null,null,null,null,null,null,null,null,null,null,null,null,5]
[null,null,"League-Pak Choice",35,null,null,null,null,5,null,null,30,null,null,null,null,null,null,null,null,null,null,null,null,null,null,null,null,null,null,null,35]
[null,null,"League-Conquering Hearts",60,null,208,null,null,5,5,null,30,10,10,null,null,null,null,null,null,null,null,null,null,null,null,null,null,null,null,null,60]
["2016-02-11",null,"League-School of Slamwich",null,null,17.5,null,null,2.5,null,null,15,null,null,null,null,null,null,null,null,null,null,null,null,null,null,null,null,null,null,null,17.5]
["2016-07-11",10175,"Autumn Intermediate Pairs-chq. Receipts",null,null,256,null,null,null,null,null,null,null,null,null,null,null,null,null,null,null,null,null,256,null,null,null,null,null,null,null,256]
["23/11/2016",10175,"Autumn Intermediate Pairs-chq. Receipts",null,null,16,null,null,null,null,null,null,null,null,null,null,null,null,null,null,null,null,null,16,null,null,null,null,null,null,null,16]
["22/12/2016","Direct","EBU-P2P November",null,null,390.18,null,390.18,null,null,null,null,null,null,null,null,null,null,null,null,null,null,null,null,null,null,null,null,null,null,null,390.18]
["2017-05-01",100802,"Ann-Ben Franks",null,null,277.5,null,null,null,null,null,null,null,null,null,null,null,null,null,null,null,null,null,null,null,null,null,null,null,null,null,0]
[null,null,"Entry Fees",612,null,null,null,null,null,null,null,null,null,null,null,null,null,null,null,null,null,612,null,null,null,null,null,null,null,null,null,612]
[null,null,"Duplimated boards and hand records",-20,null,null,null,null,null,null,null,null,null,null,null,null,null,null,null,null,null,-20,null,null,null,null,null,null,null,null,null,-20]
[null,null,"Directors Fee",-80,null,null,null,null,null,null,null,null,null,null,null,null,null,null,null,null,null,-80,null,null,null,null,null,null,null,null,null,-80]
[null,null,"Refreshments",-34.5,null,null,null,null,null,null,null,null,null,null,null,null,null,null,null,null,null,-34.5,null,null,null,null,null,null,null,null,null,-34.5]
[null,null,"Prizes",-200,null,null,null,null,null,null,null,null,null,null,null,null,null,null,null,null,null,-200,null,null,null,null,null,null,null,null,null,-200]
[null,null,null,null,null,null,null,null,null,null,null,null,null,null,null,null,null,null,null,null,null,null,null,null,null,null,null,null,null,null,null,0]
["2017-06-01",100851,"League-Bombay Sapphires",null,null,76,null,null,5,null,null,30,5,null,1,null,null,null,null,null,null,null,null,null,null,null,null,null,null,35,null,76]
["2017-09-01",100803,"Congress Income",null,null,6426,null,null,null,null,null,null,null,null,null,null,null,null,null,null,6426,null,null,null,null,null,null,null,null,null,null,6426]
["2017-09-01",100804,"Congress Income",null,null,425,null,null,null,null,null,null,null,null,null,null,null,null,null,null,425,null,null,null,null,null,null,null,null,null,null,425]
["2017-09-01",100852,"Congress Income",null,null,90,null,null,null,null,null,null,null,null,null,null,null,null,null,null,90,null,null,null,null,null,null,null,null,null,null,90]
["2017-09-01",100853,"cancelled"]
["2017-09-01",100854,"Congress Income",null,null,65,null,null,null,null,null,null,null,null,null,null,null,null,null,null,65,null,null,null,null,null,null,null,null,null,null,{"$f":"SUM(G140:AE140)","v":65}]
["10/01/201","Direct","Congress-receipts for tea and coffee",null,null,252.5,null,null,null,null,null,null,null,null,null,null,null,null,null,null,252.5,null,null,null,null,null,null,null,null,null,null,252.5]
["2017-12-01","Direct","EBU-direct members",null,null,5,5,null,null,null,null,null,null,null,null,null,null,null,null,null,null,null,null,null,null,null,null,null,null,null,null,5]
["17/01/2017","Direct","League-Tricksters-K Higgins",null,null,10,null,null,null,null,null,null,10,null,null,null,null,null,null,null,null,null,null,null,null,null,null,null,null,null,null,10]
["19/01/2017","Direct","EBU-P2P-Dec 2016",null,null,90.72,null,90.72,null,null,null,null,null,null,null,null,null,null,null,null,null,null,null,null,null,null,null,null,null,null,null,90.72]
["31/01/2017",100805,"Ann Thornton- Conngress Income",null,null,32,null,null,null,null,null,null,null,null,null,null,null,null,null,null,32,null,null,null,null,null,null,null,null,null,null,32]
["19/01/2017",100855,"Congress-Refund on teas and coffees",null,null,22.8,null,null,null,null,null,null,null,null,null,null,null,null,null,null,22.8,null,null,null,null,null,null,null,null,null,null,22.8]
["19/01/2017",100856,"Gazette Cup Income-Bramhall",null,null,80,null,null,null,null,null,null,null,null,null,null,80,null,null,null,null,null,null,null,null,null,null,null,null,null,null,80]
["2017-06-02",100806,"Gazette Cup Income",685,null,665,null,null,null,null,null,null,null,null,null,null,685,null,null,null,null,null,null,null,null,null,null,null,null,null,null,685]
[null,null,"less: Caretaker Tip",-20,null,null,null,null,null,null,null,null,null,null,null,null,-20,null,null,null,null,null,null,null,null,null,null,null,null,null,null,-20]
["16/02/2017","Direct","EBU-P2P-Jan 2017",null,null,293.23,null,293.23,null,null,null,null,null,null,null,null,null,null,null,null,null,null,null,null,null,null,null,null,null,null,null,293.23]
["21/02/2017","Direct","League-Chorlton Challengers-Pardoe",null,null,5,null,null,null,null,null,null,5,null,null,null,null,null,null,null,null,null,null,null,null,null,null,null,null,null,null,5]
["2017-02-27",10175,"B.Lewis-Cantor Cup-chq receipts",null,null,184,null,null,null,null,null,null,null,null,null,null,null,null,null,null,null,null,null,null,184,null,null,null,null,null,null,184]
["2017-06-03",10720,"Rhona-GP Swiss Pairs",null,null,1872,null,null,null,null,null,null,null,null,null,null,null,null,null,null,null,null,null,null,null,null,null,null,null,null,null,0]
[null,null,"Entry Fees",1970,null,null,null,null,null,null,null,null,null,null,null,null,null,null,1970,null,null,null,null,null,null,null,null,null,null,null,null,1970]
[null,null,"Prizes (wine)",-18,null,null,null,null,null,null,null,null,null,null,null,null,null,null,-18,null,null,null,null,null,null,null,null,null,null,null,null,-18]
[null,null,"Refreshments",-60,null,null,null,null,null,null,null,null,null,null,null,null,null,null,-60,null,null,null,null,null,null,null,null,null,null,null,null,-60]
[null,null,"Printing",-20,null,null,null,null,null,null,null,null,null,null,null,null,null,null,-20,null,null,null,null,null,null,null,null,null,null,null,null,-20]
["16/03/2017","Direct","League-Biddables-M.McPhilips",null,null,5,null,null,null,null,null,null,5,null,null,null,null,null,null,null,null,null,null,null,null,null,null,null,null,null,null,5]
["17/03/2017",100757,"GP-Swiss Pairs-late receipt",null,null,40,null,null,null,null,null,null,null,null,null,null,null,null,40,null,null,null,null,null,null,null,null,null,null,null,null,40]
["23/03/2017","Direct","EBU-P2P-February 2017",null,null,119.98,null,119.98,null,null,null,null,null,null,null,null,null,null,null,null,null,null,null,null,null,null,null,null,null,null,null,119.98]
["31/03/2017",100857,"League-Isolated Menaces",null,null,5,null,null,null,null,null,null,5,null,null,null,null,null,null,null,null,null,null,null,null,null,null,null,null,null,null,5]
["31/03/2017","reconciliation","League/Cup analysis correction re St Titus",null,null,0,null,null,5,5,null,30,10,null,-50,null,null,null,null,null,null,null,null,null,null,null,null,null,null,null,null,0]
[null,null,"League-prior yr (Manchester Cardinals) w/off",null,null,null,null,null,null,null,null,null,null,null,5,null,null,null,null,null,null,null,null,null,null,null,null,null,null,-5,null,0]
[null,null,null,null,null,null,null,null,null,null,null,null,null,null,null,null,null,null,null,null,null,null,null,null,null,null,null,null,null,null,null,0]
[null,null,null,null,null,null,null,null,null,null,null,null,null,null,null,null,null,null,null,null,null,null,null,null,null,null,null,null,null,null,null,0]
[null,null,null,null,null,null,null,null,null,null,null,null,null,null,null,null,null,null,null,null,null,null,null,null,null,null,null,null,null,null,null,0]
[null,null,null,null,null,null,null,null,null,null,null,null,null,null,null,null,null,null,null,null,null,null,null,null,null,null,null,null,null,null,null,0]
[null,null,null,null,null,null,null,null,null,null,null,null,null,null,null,null,null,null,null,null,null,null,null,null,null,null,null,null,null,null,null,0]
[null,null,null,null,null,null,null,null,null,null,null,null,null,null,null,null,null,null,null,null,null,null,null,null,null,null,null,null,null,null,null,0]
[null,null,null,null,null,null,null,null,null,null,null,null,null,null,null,null,null,null,null,null,null,null,null,null,null,null,null,null,null,null,null,0]
[null,null,null,null,null,null,null,null,null,null,null,null,null,null,null,null,null,null,null,null,null,null,null,null,null,null,null,null,null,null,null,0]
["Total Income",null,null,null,{"$f":"SUM(E30:E171)","v":-14},{"$f":"SUM(F30:F171)","v":19372.879999999997},{"$f":"SUM(G30:G171)","v":235},2554.5799999999995,327.5,175,252,1965,335,350,47,0,745,-80,1912,2080,7313.3,277.5,240,272,184,0,0,0,70,{"$f":"SUM(AD7:AD171)","v":0},0,19358.879999999997]
[]
["Total Income//Cash",null,null,null,null,{"$f":"F172+E172","v":19358.879999999997}]
[]
["Expenditure",null,null,null,{"$f":"'                   Expenses'!D194","v":0},{"$f":"'                   Expenses'!F194","v":20141.62},0,{"$f":"'                   Expenses'!G194","v":0},{"$f":"'                   Expenses'!H194","v":-63.36},{"$f":"'                   Expenses'!I194","v":0},{"$f":"'                   Expenses'!J194","v":0},{"$f":"'                   Expenses'!K194","v":0},{"$f":"'                   Expenses'!L194","v":-25},{"$f":"'                   Expenses'!M194","v":633},{"$f":"'                   Expenses'!N194","v":15},{"$f":"'                   Expenses'!O194","v":0},{"$f":"'                   Expenses'!P194","v":755.11},{"$f":"'                   Expenses'!Q194","v":0},{"$f":"'                   Expenses'!R194","v":1394.8600000000001},{"$f":"'                   Expenses'!S194","v":1519.88},{"$f":"'                   Expenses'!T194","v":7038.01},{"$f":"'                   Expenses'!U194","v":183},{"$f":"'                   Expenses'!V194","v":175.78},{"$f":"'                   Expenses'!W194","v":131.9},{"$f":"'                   Expenses'!X194","v":365.1},{"$f":"'                   Expenses'!Y194","v":0},{"$f":"'                   Expenses'!Z194","v":0},{"$f":"'                   Expenses'!AK194","v":119.1},{"$f":"'                   Expenses'!AQ194","v":280},{"$f":"'                   Expenses'!AW194","v":2104.25},{"$f":"'                   Expenses'!AX194","v":-260},{"$f":"SUM(G176:AE176)","v":14366.630000000001}]
[]
["Total Expenditure/Cash",null,null,null,null,{"$f":"F176+E176","v":20141.62}]
[]
["Totals( Income less Expenditure + Opening Bals)",null,null,null,null,{"$f":"F174-F178+F8+E8","v":2991.4899999999984},{"$f":"G172-G176","v":235},2554.5799999999995,390.86,175,252,{"$f":"L172-L176","v":1965},360,{"$f":"N172-N176","v":-283},{"$f":"O172-O176","v":32},0,-10.110000000000014,-80,517.13999999999987,560.11999999999989,275.28999999999996,94.5,64.22,140.1,-181.10000000000002,0,0,-119.1,-210,-2104.25,260]
[]
["Cash Held, not yet banked",null,null,null,null,{"$f":"E8+E172","v":0}]
[]
["Sundry Creditors-Unpresented Cheques",null,null,null,null,{"$f":"'                   Expenses'!F201","v":2560.23}]
[]
["Transfer from Skipton BS",null,"31/05/2016…..paying in slip 100744",null,null,3000]
[]
["Bank Balance",null,null,null,null,{"$f":"F180-F182+F184+F186+F185","v":8551.7199999999975}]
[null,null,null,null,"Agreed to bank sheet 214"]
[null,null,null,null,null,null,"                                                                                                                                                                                                                                                                                                                                                                                                                                                                                                                                                                                                                                                                                                                                                                                                                                                                                                                                                                                  "]

{"sheet":"Reserve Accounts","index":1,"n_rows":9,"n_cols":13,"rows_kept":9,"cut":false,"hidden":false,"merged":[]}
["Skipton Building Society (MCBA)"]
[]
[null,null,"2016-17","2015 - 2016","2014 - 2015","2013 - 2014","2012 - 2013",null,"2011-2012",null,"2010 - 2011",null,"2009 - 2010"]
[]
["Balance B/F",null,{"$f":"D9","v":9793.7000000000007},{"$f":"E9","v":11718.7},{"$f":"F9","v":11718.7},{"$f":"G9","v":11644.18},{"$f":"I9","v":11586.880000000001},null,{"$f":"K9","v":11454.29},null,{"$f":"M9","v":11239.54},null,11000]
["Transfer to NatWest",null,-3000,-2000]
["Interest",null,80.28,75,null,74.52,57.3,null,132.59,null,{"$f":"11454.29-M9","v":214.75},null,239.54]
[]
["Total",null,{"$f":"SUM(C5:C8)","v":6873.9800000000005},{"$f":"SUM(D5:D8)","v":9793.7000000000007},{"$f":"SUM(E5:E8)","v":11718.7},{"$f":"F5+F7","v":11718.7},{"$f":"SUM(G5:G8)","v":11644.18},null,{"$f":"I5+I7","v":11586.880000000001},null,{"$f":"K5+K7","v":11454.29},null,{"$f":"SUM(M5:M8)","v":11239.54}]

{"sheet":"                   Expenses","index":2,"n_rows":203,"n_cols":51,"rows_kept":203,"cut":false,"hidden":false,"merged":[]}
["Expenditure",null,null,null,null,null,null,null,null,null,null,null,null,null,null,null,null,null,null,null,null,null,null,null,null,null,null,null,null,null,null,null,null,null,null,null,null,"Travel"]
[null,null,null,null,null,null,null,null,null,null,null,null,null,null,null,null,null,null,null,null,null,null,null,null,null,null,null,null,null,null,null,null,null,null,null,null,null,"Telephone","Bridge",null,null,null,null,null,null,null,null,"Prepaid"]
["Date","Cheque No","Details",null,null,null,null,null,null,null,null,null,null,null,null,null,"Merville","Pairs","Teams",null,null,"Summer ","Autumn",null,null,"Players Progress ","EBU","EBU","MCBA","Retirement","EBU","EBU","Presidents","Derbyshire","NBL","All Counties","EBU","Printing","Stationery &","Handbook","AGM","Youth","Seminars","EBU","Engraving","Camrose","Northern","Room","Outstanding","Prior Year ","Totals"]
[null,null,null,"Cash",null,"Bank","EBU","EBU P2P","EBU P2P","EBU","EBU","League & Cup","Higson      ","Over","EBU","Gazette","Goldstone","Green","Green","Manchester","Ben","Intermediate","Intermediate","Cantor Cup","Newcomers","& Kevin Comrie","Tollemache","Corwen","Website","Gifts/","Pachabo","Garden","Cup","Friendly",null,"Super ","Delegate","Postage","Equipment","Expenses","Expenses","Budget",null,"Masterpoints",null,null,"Counties","Bookings",null,"Corrections"]
[null,null,null,null,"Sub",null,"P2P (clubs)","League ","Cup","Affiliates","League",">4 players","Cup & Plate","Payments","BFA","Trophy","Trophy","Points","Points","Congress","Franks","Pairs","Pairs",null,"League","Cups",null,null,"Fees","Presentations","Cup","Cities",null,null,null,"Final","Expenses","Stationery","Insurance",null,null,null,null,null,null,null,"Working","Events etc","2015-2016"]
[null,null,null,null,"Addition",null,null,null,null,null,null,null,null,null,null,null,null,null,null,null,null,null,null,null,null,null,null,null,null,null,null,null,null,null,null,null,null,"Bank Fees",null,null,null,null,null,null,null,null,"Group","Next Year"]
["Balances B/f:",null,"Unpresented Cheques",null,null,null,null,null,null,null,null,null,null,null,null,null,null,null,null,null,null,null,null,null,null,null,null,null,null,null,null,null,null,null,null,null,null,null,null,null,null,null,null,null,null,null,null,null,-2490.65]
[null,null,"Estimated EBU license fee for League 2015/16",null,null,null,null,null,null,null,null,null,null,null,null,null,null,null,null,null,null,null,null,null,null,null,null,null,null,null,null,null,null,null,null,null,null,null,null,null,null,null,null,null,null,null,null,null,-489.6]
[null,null,"less: Prepayments",null,null,null,null,null,null,null,null,null,null,null,null,null,null,null,null,null,null,null,null,null,null,null,null,null,null,null,null,null,null,null,null,null,null,null,null,null,null,null,null,null,null,null,null,null,876]
["Prepaid Room Bookings for 2016-17",null,null,null,null,null,null,null,null,null,null,null,null,null,null,null,null,null,null,null,null,null,null,null,null,null,null,null,null,null,null,null,null,null,null,null,null,null,null,null,null,null,null,null,null,null,null,null,null,null,{"$f":"SUM(G10:AX10)","v":0}]
[null,null,"Summer Int. Pairs  - Jun 2016",null,92,null,null,null,null,null,null,null,null,null,null,null,null,null,null,null,null,92,null,null,null,null,null,null,null,null,null,null,null,null,null,null,null,null,null,null,null,null,null,null,null,null,null,null,-92,null,0]
[null,null,"GP Pairs - Mar 2017",null,50,null,null,null,null,null,null,null,null,null,null,null,null,50,null,null,null,null,null,null,null,null,null,null,null,null,null,null,null,null,null,null,null,null,null,null,null,null,null,null,null,null,null,null,-50,null,0]
[null,null,"GP Teams - Jul 2016 £184 and deposit GP Teams Jul 2017 £50",null,{"$f":"184+50","v":234},null,null,null,null,null,null,null,null,null,null,null,null,null,184,null,null,null,null,null,null,null,null,null,null,null,null,null,null,null,null,null,null,null,null,null,null,null,null,null,null,null,null,50,-234,null,0]
[null,null,"Manchester Congress Deposit - Jan 2017",null,500,null,null,null,null,null,null,null,null,null,null,null,null,null,null,500,null,null,null,null,null,null,null,null,null,null,null,null,null,null,null,null,null,null,null,null,null,null,null,null,null,null,null,null,-500,null,0]
[]
["Prior Year Unpresented Cheques in Yellow:"]
[null,1320,"R.Lighton-website expenses",null,null,71.84,null,null,null,null,null,null,null,null,null,null,null,null,null,null,null,null,null,null,null,null,null,null,null,null,null,null,null,null,null,null,null,null,null,null,null,null,null,null,null,null,null,null,71.84,null,{"$f":"SUM(G17:AX17)","v":71.84}]
[null,1321,"cheque destroyed",null,null,null,null,null,null,null,null,null,null,null,null,null,null,null,null,null,null,null,null,null,null,null,null,null,null,null,null,null,null,null,null,null,null,null,null,null,null,null,null,null,null,null,null,null,null,null,0]
[null,1322,"EBU-Ben Franks P2P",null,null,14.76,null,null,null,null,null,null,null,null,null,null,null,null,null,null,null,null,null,null,null,null,null,null,null,null,null,null,null,null,null,null,null,null,null,null,null,null,null,null,null,null,null,null,14.76,null,14.76]
[null,1323,"K.Nelson - Cup Prizes",null,null,250,null,null,null,null,null,null,null,null,null,null,null,null,null,null,null,null,null,null,null,null,null,null,null,null,null,null,null,null,null,null,null,null,null,null,null,null,null,null,null,null,null,null,250,null,250]
[null,1324,"M.Byrne-teaching B team seminar",null,null,250,null,null,null,null,null,null,null,null,null,null,null,null,null,null,null,null,null,null,null,null,null,null,null,null,null,null,null,null,null,null,null,null,null,null,null,null,250,null,null,null,null,null,null,null,250]
[null,1325,"CHBC-room hire B team seminar",null,null,30,null,null,null,null,null,null,null,null,null,null,null,null,null,null,null,null,null,null,null,null,null,null,null,null,null,null,null,null,null,null,null,null,null,null,null,null,30,null,null,null,null,null,null,null,30]
[null,1326,"J.Lewis-Plate final-directing",null,null,80,null,null,null,null,null,null,null,null,null,null,null,null,null,null,null,null,null,null,null,null,null,null,null,null,null,null,null,null,null,null,null,null,null,null,null,null,null,null,null,null,null,null,80,null,80]
[null,1327,"J.Smith - Cup directing",null,null,80,null,null,null,null,null,null,null,null,null,null,null,null,null,null,null,null,null,null,null,null,null,null,null,null,null,null,null,null,null,null,null,null,null,null,null,null,null,null,null,null,null,null,80,null,80]
[null,1328,"ABC-Cup & Plate Finals:Hand records£16/Duplimating Brds £30",null,null,46,null,null,null,null,null,null,null,null,null,null,null,null,null,null,null,null,null,null,null,null,null,null,null,null,null,null,null,null,null,null,null,null,null,null,null,null,null,null,null,null,null,null,46,null,46]
[null,1329,"MBC-Cup & Plate Finals: 18 tables@£12",null,null,216,null,null,null,null,null,null,null,null,null,null,null,null,null,null,null,null,null,null,null,null,null,null,null,null,null,null,null,null,null,null,null,null,null,null,null,null,null,null,null,null,null,null,216,null,216]
[null,1330,"S.Davies: NBL-4 teams @ £75",null,null,300,null,null,null,null,null,null,null,null,null,null,null,null,null,null,null,null,null,null,null,null,null,null,null,null,null,null,null,null,null,null,null,null,null,null,null,null,null,null,null,null,null,null,300,null,300]
[null,1331,"Expert Player of Year-Michael Newman",null,null,50,null,null,null,null,null,null,null,null,null,null,null,null,null,null,null,null,null,null,null,null,null,null,null,null,null,null,null,null,null,null,null,null,null,null,null,null,null,null,null,null,null,null,50,null,50]
[null,1332," Joint Intermediate POY- Graham Campbell",null,null,25,null,null,null,null,null,null,null,null,null,null,null,null,null,null,null,null,null,null,null,null,null,null,null,null,null,null,null,null,null,null,null,null,null,null,null,null,null,null,null,null,null,null,25,null,25]
[null,1333,"Joint Intermediate POY - George Leigh",null,null,25,null,null,null,null,null,null,null,null,null,null,null,null,null,null,null,null,null,null,null,null,null,null,null,null,null,null,null,null,null,null,null,null,null,null,null,null,null,null,null,null,null,null,25,null,25]
[null,1334,"I.Davies-engraving 3 trophies for POY",null,null,19.5,null,null,null,null,null,null,null,null,null,null,null,null,null,null,null,null,null,null,null,null,null,null,null,null,null,null,null,null,null,null,null,null,null,null,null,null,null,null,null,null,null,null,19.5,null,19.5]
[null,1335,"H.Tattersall-repayt of cash provided for Gazette Cup",null,null,9.17,null,null,null,null,null,null,null,null,null,null,null,null,null,null,null,null,null,null,null,null,null,null,null,null,null,null,null,null,null,null,null,null,null,null,null,null,null,null,null,null,null,null,9.17,null,9.17]
[null,1336,"EBU Inv 574886-Congress License Fees",null,null,250.92,null,null,null,null,null,null,null,null,null,null,null,null,null,null,null,null,null,null,null,null,null,null,null,null,null,null,null,null,null,null,null,null,null,null,null,null,null,null,null,null,null,null,250.92,null,250.92]
[null,1337,"EBU inv 578684-License Fees Gazette=£28.44/League Div 7 last year=£61.20",null,null,89.64,null,null,null,null,null,null,null,null,null,null,null,null,null,null,null,null,null,null,null,null,null,null,null,null,null,null,null,null,null,null,null,null,null,null,null,null,null,null,null,null,null,null,89.64,null,89.64]
[null,1338,"EBU inv 577964-Insurance for 2016-17",null,null,73.2,null,null,null,null,null,null,null,null,null,null,null,null,null,null,null,null,null,null,null,null,null,null,null,null,null,null,null,null,null,null,null,null,73.2,null,null,null,null,null,null,null,null,null,null,null,73.2]
[null,1339,"EBU inv.580623-License Fees GP Pairs on 5/03/16",null,null,370.14,null,null,null,null,null,null,null,null,null,null,null,null,null,null,null,null,null,null,null,null,null,null,null,null,null,null,null,null,null,null,null,null,null,null,null,null,null,null,null,null,null,null,370.14,null,370.14]
[null,1340,"EBU inv.580977 - License Fees-Garden Cities final",null,null,260,null,null,null,null,null,null,null,null,null,null,null,null,null,null,null,null,null,null,null,null,null,null,null,null,null,null,null,null,null,null,null,null,null,null,null,null,null,null,null,null,null,null,260,null,260]
[null,1341,"EBU inv.579890 - Corwen Trophy entry fees-chq cancelled",null,null,null,null,null,null,null,null,null,null,null,null,null,null,null,null,null,null,null,null,null,null,null,null,null,null,null,null,null,null,null,null,null,null,null,null,null,null,null,null,null,null,null,null,null,null,null,0]
[null,1342,"League cup engraving",null,null,50,null,null,null,null,null,null,null,null,null,null,null,null,null,null,null,null,null,null,null,null,null,null,null,null,null,null,null,null,null,null,null,null,null,null,null,null,null,null,null,null,null,null,50,null,50]
[null,1343,"Treasurers Expenses-2015/16-postage",null,null,22.68,null,null,null,null,null,null,null,null,null,null,null,null,null,null,null,null,null,null,null,null,null,null,null,null,null,null,null,null,null,null,null,null,null,null,null,null,null,null,null,null,null,null,22.68,null,22.68]
[null,1344,"Garden Cities final - ERROR-chq 1344 shown below",null,null,260,null,null,null,null,null,null,null,null,null,null,null,null,null,null,null,null,null,null,null,null,null,null,null,null,null,null,null,null,null,null,null,null,null,null,null,null,null,null,null,null,null,null,260,null,260]
[null,null,"PRIOR YEAR CORRECTION-re error on above line",null,null,-260,null,null,null,null,null,null,null,null,null,null,null,null,null,null,null,null,null,null,null,null,null,null,null,null,null,null,null,null,null,null,null,null,null,null,null,null,null,null,null,null,null,null,null,-260,-260]
["2016-08-06",1344,"I. Davies-AGM expenses",null,null,57.8,null,null,null,null,null,null,null,null,null,null,null,null,null,null,null,null,null,null,null,null,null,null,null,null,null,null,null,null,null,null,null,null,null,null,57.8,null,null,null,null,null,null,null,null,null,57.8]
["2016-12-06",1345,"S.Triggs-Handbook Expenses",null,null,249,null,null,null,null,null,null,null,null,null,null,null,null,null,null,null,null,null,null,null,null,null,null,null,null,null,null,null,null,null,null,null,null,null,249,null,null,null,null,null,null,null,null,null,null,249]
["2016-12-06",1346,"S.Triggs-posting handbooks",null,null,12.98,null,null,null,null,null,null,null,null,null,null,null,null,null,null,null,null,null,null,null,null,null,null,null,null,null,null,null,null,null,null,null,null,null,12.98,null,null,null,null,null,null,null,null,null,null,12.98]
["22/06/2016",1347,"M & CBA -Presidents Cup",null,null,220,null,null,null,null,null,null,null,null,null,null,null,null,null,null,null,null,null,null,null,null,null,null,null,null,null,null,220,null,null,null,null,null,null,null,null,null,null,null,null,null,null,null,null,null,220]
["22/06/2016",1348,"Ian Mitchell-Inter-County League Finals",null,null,180,null,null,null,null,null,null,null,null,null,null,null,null,null,null,null,null,null,null,null,null,null,null,null,null,null,null,null,null,null,180,null,null,null,null,null,null,null,null,null,null,null,null,null,null,180]
["22/06/2016",1349,"EBU-Pachabo entry",null,null,212,null,null,null,null,null,null,null,null,null,null,null,null,null,null,null,null,null,null,null,null,null,null,null,null,212,null,null,null,null,null,null,null,null,null,null,null,null,null,null,null,null,null,null,null,212]
["22/06/2016",1350,"EBU-Corwen Trophy",null,null,200,null,null,null,null,null,null,null,null,null,null,null,null,null,null,null,null,null,null,null,null,null,200,null,null,null,null,null,null,null,null,null,null,null,null,null,null,null,null,null,null,null,null,null,null,200]
["28/06/2016",1351,"Barbara Lewis re Summer Intermediate Pairs (£83.78) ",null,null,83.78,null,null,null,null,null,null,null,null,null,null,null,null,null,null,null,null,null,null,null,null,null,null,null,null,null,null,null,null,null,null,null,null,null,null,null,null,null,null,null,null,null,null,null,null,0]
[null,null,"Cash income",null,-176,null,null,null,null,null,null,null,null,null,null,null,null,null,null,null,null,-176,null,null,null,null,null,null,null,null,null,null,null,null,null,null,null,null,null,null,null,null,null,null,null,null,null,null,null,null,-176]
[null,null,"Director-Joan Lewis",null,45,null,null,null,null,null,null,null,null,null,null,null,null,null,null,null,null,45,null,null,null,null,null,null,null,null,null,null,null,null,null,null,null,null,null,null,null,null,null,null,null,null,null,null,null,null,45]
[null,null,"ABC-equipment",null,20,null,null,null,null,null,null,null,null,null,null,null,null,null,null,null,null,20,null,null,null,null,null,null,null,null,null,null,null,null,null,null,null,null,null,null,null,null,null,null,null,null,null,null,null,null,20]
[null,null,"Gratuities",null,11,null,null,null,null,null,null,null,null,null,null,null,null,null,null,null,null,11,null,null,null,null,null,null,null,null,null,null,null,null,null,null,null,null,null,null,null,null,null,null,null,null,null,null,null,null,11]
[null,null,"Printing",null,2,null,null,null,null,null,null,null,null,null,null,null,null,null,null,null,null,2,null,null,null,null,null,null,null,null,null,null,null,null,null,null,null,null,null,null,null,null,null,null,null,null,null,null,null,null,2]
[null,null,"Postage",null,3.3,null,null,null,null,null,null,null,null,null,null,null,null,null,null,null,null,3.3,null,null,null,null,null,null,null,null,null,null,null,null,null,null,null,null,null,null,null,null,null,null,null,null,null,null,null,null,3.3]
[null,null,"Duplimated boards and hand records",null,10,null,null,null,null,null,null,null,null,null,null,null,null,null,null,null,null,10,null,null,null,null,null,null,null,null,null,null,null,null,null,null,null,null,null,null,null,null,null,null,null,null,null,null,null,null,10]
[null,null,"Refreshments",null,15.5,null,null,null,null,null,null,null,null,null,null,null,null,null,null,null,null,15.5,null,null,null,null,null,null,null,null,null,null,null,null,null,null,null,null,null,null,null,null,null,null,null,null,null,null,null,null,15.5]
[null,null,"Sweets",null,13,null,null,null,null,null,null,null,null,null,null,null,null,null,null,null,null,13,null,null,null,null,null,null,null,null,null,null,null,null,null,null,null,null,null,null,null,null,null,null,null,null,null,null,null,null,13]
[null,null,"Prizes-1st=£50, 2nd = £30, 3rd= £20",null,100,null,null,null,null,null,null,null,null,null,null,null,null,null,null,null,null,100,null,null,null,null,null,null,null,null,null,null,null,null,null,null,null,null,null,null,null,null,null,null,null,null,null,null,null,null,100]
[null,null,"Prizes-wine and chocolate",null,39.979999999999997,null,null,null,null,null,null,null,null,null,null,null,null,null,null,null,null,39.979999999999997,null,null,null,null,null,null,null,null,null,null,null,null,null,null,null,null,null,null,null,null,null,null,null,null,null,null,null,null,39.979999999999997]
["19/07/2016",1352,"D. Stevenson-GP Swiss Teams-directing",null,null,181,null,null,null,null,null,null,null,null,null,null,null,null,181,null,null,null,null,null,null,null,null,null,null,null,null,null,null,null,null,null,null,null,null,null,null,null,null,null,null,null,null,null,null,null,181]
["19/07/2016",1353,"J. Lewis-GP Swiss Teams:",null,null,80,null,null,null,null,null,null,null,null,null,null,null,null,null,null,null,null,null,null,null,null,null,null,null,null,null,null,null,null,null,null,null,null,null,null,null,null,null,null,null,null,null,null,null,null,0]
[null,null,"Directing ",null,55,null,null,null,null,null,null,null,null,null,null,null,null,null,55,null,null,null,null,null,null,null,null,null,null,null,null,null,null,null,null,null,null,null,null,null,null,null,null,null,null,null,null,null,null,null,55]
[null,null,"caretaker tip",null,10,null,null,null,null,null,null,null,null,null,null,null,null,null,10,null,null,null,null,null,null,null,null,null,null,null,null,null,null,null,null,null,null,null,null,null,null,null,null,null,null,null,null,null,null,null,10]
[null,null,"printing",null,15,null,null,null,null,null,null,null,null,null,null,null,null,null,15,null,null,null,null,null,null,null,null,null,null,null,null,null,null,null,null,null,null,null,null,null,null,null,null,null,null,null,null,null,null,null,15]
["19/07/2016",1354,"ABC-GP Swiss Teams-Equipment & duplimating",null,null,138,null,null,null,null,null,null,null,null,null,null,null,null,138,null,null,null,null,null,null,null,null,null,null,null,null,null,null,null,null,null,null,null,null,null,null,null,null,null,null,null,null,null,null,null,{"$f":"SUM(G67:AX67)","v":138}]
["19/07/2016",1355,"R. Goldenfield-GP Swiss Teams-£550",null,null,550,null,null,null,null,null,null,null,null,null,null,null,null,null,null,null,null,null,null,null,null,null,null,null,null,null,null,null,null,null,null,null,null,null,null,null,null,null,null,null,null,null,null,null,null,0]
[null,null,"Prizes",null,488,null,null,null,null,null,null,null,null,null,null,null,null,null,488,null,null,null,null,null,null,null,null,null,null,null,null,null,null,null,null,null,null,null,null,null,null,null,null,null,null,null,null,null,null,null,488]
[null,null,"Refreshments",null,42,null,null,null,null,null,null,null,null,null,null,null,null,null,42,null,null,null,null,null,null,null,null,null,null,null,null,null,null,null,null,null,null,null,null,null,null,null,null,null,null,null,null,null,null,null,42]
[null,null,"Printing & Postage",null,20,null,null,null,null,null,null,null,null,null,null,null,null,null,20,null,null,null,null,null,null,null,null,null,null,null,null,null,null,null,null,null,null,null,null,null,null,null,null,null,null,null,null,null,null,null,20]
["26/08/2016",1356,"S. Triggs - Handbook printing",null,null,236.55,null,null,null,null,null,null,null,null,null,null,null,null,null,null,null,null,null,null,null,null,null,null,null,null,null,null,null,null,null,null,null,null,null,236.55,null,null,null,null,null,null,null,null,null,null,236.55]
["26/08/2016",1357,"I.Davies - Tollemache accom. deposits@£25 each",null,null,175,null,null,null,null,null,null,null,null,null,null,null,null,null,null,null,null,null,null,null,null,175,null,null,null,null,null,null,null,null,null,null,null,null,null,null,null,null,null,null,null,null,null,null,null,175]
["2016-12-10",1358,"I.Davies-Congress brochures",null,null,60,null,null,null,null,null,null,null,null,null,null,null,null,null,60,null,null,null,null,null,null,null,null,null,null,null,null,null,null,null,null,null,null,null,null,null,null,null,null,null,null,null,null,null,null,60]
["2016-12-10",1359,"I.Davies-Accom. For Tollemache NPC (non-playing captain)",null,null,105.9,null,null,null,null,null,null,null,null,null,null,null,null,null,null,null,null,null,null,null,null,105.9,null,null,null,null,null,null,null,null,null,null,null,null,null,null,null,null,null,null,null,null,null,null,null,105.9]
["2016-12-10",1360,"EBU-Tollemache entry fees",null,null,416,null,null,null,null,null,null,null,null,null,null,null,null,null,null,null,null,null,null,null,null,416,null,null,null,null,null,null,null,null,null,null,null,null,null,null,null,null,null,null,null,null,null,null,null,416]
["2016-12-10",1361,"Rhona Goldfield-Tollemache Allowances balanc 8@£25",null,null,200,null,null,null,null,null,null,null,null,null,null,null,null,null,null,null,null,null,null,null,null,200,null,null,null,null,null,null,null,null,null,null,null,null,null,null,null,null,null,null,null,null,null,null,null,200]
["20/10/2016",1362,"I.Davies-2 further Tollemache allowances 2@£25",null,null,50,null,null,null,null,null,null,null,null,null,null,null,null,null,null,null,null,null,null,null,null,50,null,null,null,null,null,null,null,null,null,null,null,null,null,null,null,null,null,null,null,null,null,null,null,50]
["20/10/2016",1363,"St Peters PCC-Autumn Intermediate Pairs-06/11/2016-room hire",null,null,92,null,null,null,null,null,null,null,null,null,null,null,null,null,null,null,null,92,null,null,null,null,null,null,null,null,null,null,null,null,null,null,null,null,null,null,null,null,null,null,null,null,null,null,null,92]
["20/10/2016",1364,"St Paeters PCC-Gazette Cup 05/02/2017-room hire",null,null,138,null,null,null,null,null,null,null,null,null,138,null,null,null,null,null,null,null,null,null,null,null,null,null,null,null,null,null,null,null,null,null,null,null,null,null,null,null,null,null,null,null,null,null,null,138]
["20/10/2016",1365,"EBU P2P for Swiss Teams-July 2016",null,null,386.88,null,null,null,null,null,null,null,null,null,null,null,null,386.88,null,null,null,null,null,null,null,null,null,null,null,null,null,null,null,null,null,null,null,null,null,null,null,null,null,null,null,null,null,null,null,386.88]
["20/10/2016",1366,"EBU League P2P for 2016/2016",null,null,426.24,null,null,null,null,null,null,null,null,null,null,null,null,null,null,null,null,null,null,null,null,null,null,null,null,null,null,null,null,null,null,null,null,null,null,null,null,null,null,null,null,null,null,426.24,null,426.24]
[null,null,"W/Off over-provision for P2P for League 2015/16",null,null,null,null,-63.36,null,null,null,null,null,null,null,null,null,null,null,null,null,null,null,null,null,null,null,null,null,null,null,null,null,null,null,null,null,null,null,null,null,null,null,null,null,null,null,null,63.36,null,0]
["25/11/2016",1367,"V &A Hotel -Manchester Congress 2017",null,null,2812,null,null,null,null,null,null,null,null,null,null,null,null,null,2812,null,null,null,null,null,null,null,null,null,null,null,null,null,null,null,null,null,null,null,null,null,null,null,null,null,null,null,null,null,null,2812]
["25/11/2016",1368,"St Peters Hall-Intermediate Pairs 11/06/2017-Room Hire",null,null,92,null,null,null,null,null,null,null,null,null,null,null,null,null,null,null,null,null,null,null,null,null,null,null,null,null,null,null,null,null,null,null,null,null,null,null,null,null,null,null,null,null,92,null,null,92]
["2016-09-12",1369,"EBU Inv 590013-Ben Franks P2P",null,null,18,null,null,null,null,null,null,null,null,null,null,null,null,null,null,18,null,null,null,null,null,null,null,null,null,null,null,null,null,null,null,null,null,null,null,null,null,null,null,null,null,null,null,null,null,18]
["2016-11-12",1370,"(K.Comrie)-P.A. system for tournaments",null,null,149,null,null,null,null,null,null,null,null,null,null,null,null,null,null,null,null,null,null,null,null,null,null,null,null,null,null,null,null,null,null,null,null,149,null,null,null,null,null,null,null,null,null,null,null,149]
["2016-11-12",1371,"A.Wiseberg-League-refund of overpayment",null,null,15,null,null,null,null,null,null,null,15,null,null,null,null,null,null,null,null,null,null,null,null,null,null,null,null,null,null,null,null,null,null,null,null,null,null,null,null,null,null,null,null,null,null,null,null,15]
["2016-11-12",1372,"MBC-Ben Franks Room Hire",null,null,156,null,null,null,null,null,null,null,null,null,null,null,null,null,null,156,null,null,null,null,null,null,null,null,null,null,null,null,null,null,null,null,null,null,null,null,null,null,null,null,null,null,null,null,null,156]
["2016-11-12",1373,"R.Goldenfield-Tollemache-petrol for NPC",null,null,40,null,null,null,null,null,null,null,null,null,null,null,null,null,null,null,null,null,null,null,null,40,null,null,null,null,null,null,null,null,null,null,null,null,null,null,null,null,null,null,null,null,null,null,null,40]
["2016-11-12",1374,"S.Triggs-Handbook Postage",null,null,11.03,null,null,null,null,null,null,null,null,null,null,null,null,null,null,null,null,null,null,null,null,null,null,null,null,null,null,null,null,null,null,null,null,null,11.03,null,null,null,null,null,null,null,null,null,null,11.03]
["2016-11-12",1375,"St Peters PCCInv 1612-GP Swiss Pairs-Room Hire",null,null,134,null,null,null,null,null,null,null,null,null,null,null,134,null,null,null,null,null,null,null,null,null,null,null,null,null,null,null,null,null,null,null,null,null,null,null,null,null,null,null,null,null,null,null,null,134]
["2016-11-12",1376,"St Peters PCCInv 1613-GPTeams 2017/18-Room Hire",null,null,134,null,null,null,null,null,null,null,null,null,null,null,null,null,null,null,null,null,null,null,null,null,null,null,null,null,null,null,null,null,null,null,null,null,null,null,null,null,null,null,null,null,134,null,null,134]
["2016-11-12",1377,"M.Newman -Printing",null,36,45,null,null,null,null,null,null,null,null,null,null,null,null,null,null,null,null,null,null,null,null,null,null,null,null,null,null,null,null,null,null,null,36,null,null,null,null,null,null,null,null,null,null,null,null,36]
[null,null,"M.Newman-Ben Franks trophy engraving",null,9,null,null,null,null,null,null,null,null,null,null,null,null,null,null,null,9,null,null,null,null,null,null,null,null,null,null,null,null,null,null,null,null,null,null,null,null,null,null,null,null,null,null,null,null,null,9]
["2016-11-12",1378,"M.Newman-EBU shareholders meeting expenses",null,null,119.1,null,null,null,null,null,null,null,null,null,null,null,null,null,null,null,null,null,null,null,null,null,null,null,null,null,null,null,null,null,null,119.1,null,null,null,null,null,null,null,null,null,null,null,null,null,119.1]
["2016-12-12",1379,"B.Lewis - Congress - Postage",null,21.8,105.8,null,null,null,null,null,null,null,null,null,null,null,null,null,21.8,null,null,null,null,null,null,null,null,null,null,null,null,null,null,null,null,null,null,null,null,null,null,null,null,null,null,null,null,null,null,21.8]
[null,null,"B.Lewis - Congress - Engraving",null,84,null,null,null,null,null,null,null,null,null,null,null,null,null,null,84,null,null,null,null,null,null,null,null,null,null,null,null,null,null,null,null,null,null,null,null,null,null,null,null,null,null,null,null,null,null,84]
["22/12/2016",1380,"I.Davies-Flowers for Eve",null,null,39.5,null,null,null,null,null,null,null,null,null,null,null,null,null,null,null,null,null,null,null,null,null,null,null,39.5,null,null,null,null,null,null,null,null,null,null,null,null,null,null,null,null,null,null,null,null,{"$f":"SUM(G99:AX99)","v":39.5}]
["22/12/2016",1381,"I.Davies-Tollemache accommodation for final",null,null,250,null,null,null,null,null,null,null,null,null,null,null,null,null,null,null,null,null,null,null,null,250,null,null,null,null,null,null,null,null,null,null,null,null,null,null,null,null,null,null,null,null,null,null,null,250]
["2017-01-01",1382,"B.Lewis - Autumn Intermediate Pairs (net)",null,null,39.9,null,null,null,null,null,null,null,null,null,null,null,null,null,null,null,null,null,null,null,null,null,null,null,null,null,null,null,null,null,null,null,null,null,null,null,null,null,null,null,null,null,null,null,null,0]
[null,null,"Cash income",null,-216,null,null,null,null,null,null,null,null,null,null,null,null,null,null,null,null,null,-216,null,null,null,null,null,null,null,null,null,null,null,null,null,null,null,null,null,null,null,null,null,null,null,null,null,null,null,-216]
[null,null,"Director, J.Fitzgerald-wine/chocs",null,10.5,null,null,null,null,null,null,null,null,null,null,null,null,null,null,null,null,null,10.5,null,null,null,null,null,null,null,null,null,null,null,null,null,null,null,null,null,null,null,null,null,null,null,null,null,null,null,10.5]
[null,null,"Scorer,Margaret Harris-wine/chocs",null,10.5,null,null,null,null,null,null,null,null,null,null,null,null,null,null,null,null,null,10.5,null,null,null,null,null,null,null,null,null,null,null,null,null,null,null,null,null,null,null,null,null,null,null,null,null,null,null,10.5]
[null,null,"ABC-Hire equipment",null,20,null,null,null,null,null,null,null,null,null,null,null,null,null,null,null,null,null,20,null,null,null,null,null,null,null,null,null,null,null,null,null,null,null,null,null,null,null,null,null,null,null,null,null,null,null,20]
[null,null,"Caretaker gratuity",null,10,null,null,null,null,null,null,null,null,null,null,null,null,null,null,null,null,null,10,null,null,null,null,null,null,null,null,null,null,null,null,null,null,null,null,null,null,null,null,null,null,null,null,null,null,null,10]
[null,null,"Duplimated boards and hand records",null,12,null,null,null,null,null,null,null,null,null,null,null,null,null,null,null,null,null,12,null,null,null,null,null,null,null,null,null,null,null,null,null,null,null,null,null,null,null,null,null,null,null,null,null,null,null,12]
[null,null,"Refreshments",null,39.5,null,null,null,null,null,null,null,null,null,null,null,null,null,null,null,null,null,39.5,null,null,null,null,null,null,null,null,null,null,null,null,null,null,null,null,null,null,null,null,null,null,null,null,null,null,null,39.5]
[null,null,"Stationery",null,2,null,null,null,null,null,null,null,null,null,null,null,null,null,null,null,null,null,2,null,null,null,null,null,null,null,null,null,null,null,null,null,null,null,null,null,null,null,null,null,null,null,null,null,null,null,2]
[null,null,"Stamps",null,4.4000000000000004,null,null,null,null,null,null,null,null,null,null,null,null,null,null,null,null,null,4.4000000000000004,null,null,null,null,null,null,null,null,null,null,null,null,null,null,null,null,null,null,null,null,null,null,null,null,null,null,null,4.4000000000000004]
[null,null,"Prizes",null,147,null,null,null,null,null,null,null,null,null,null,null,null,null,null,null,null,null,147,null,null,null,null,null,null,null,null,null,null,null,null,null,null,null,null,null,null,null,null,null,null,null,null,null,null,null,147]
["2017-02-01",1383,"A.Thornton-Present for Joan",null,21.5,26,null,null,null,null,null,null,null,null,null,null,null,null,null,null,null,null,null,null,null,null,null,null,null,21.5,null,null,null,null,null,null,null,null,null,null,null,null,null,null,null,null,null,null,null,null,21.5]
[null,null,"A.Thornton-Printing",null,4.5,null,null,null,null,null,null,null,null,null,null,null,null,null,null,null,null,null,null,null,null,null,null,null,null,null,null,null,null,null,null,null,null,4.5,null,null,null,null,null,null,null,null,null,null,null,null,4.5]
["2017-08-01",1384,"S.Amos-Congress-Directing",null,null,590.75,null,null,null,null,null,null,null,null,null,null,null,null,null,590.75,null,null,null,null,null,null,null,null,null,null,null,null,null,null,null,null,null,null,null,null,null,null,null,null,null,null,null,null,null,null,590.75]
["2017-08-01",1385,"R.Dixon-Congress-Directing",null,null,347.05,null,null,null,null,null,null,null,null,null,null,null,null,null,347.05,null,null,null,null,null,null,null,null,null,null,null,null,null,null,null,null,null,null,null,null,null,null,null,null,null,null,null,null,null,null,347.05]
["2017-08-01",1386,"J.Lewis-Congress-Directing",null,null,50,null,null,null,null,null,null,null,null,null,null,null,null,null,50,null,null,null,null,null,null,null,null,null,null,null,null,null,null,null,null,null,null,null,null,null,null,null,null,null,null,null,null,null,null,50]
["2017-08-01",1387,"G.Wynn-Congress-Directing",null,null,50,null,null,null,null,null,null,null,null,null,null,null,null,null,50,null,null,null,null,null,null,null,null,null,null,null,null,null,null,null,null,null,null,null,null,null,null,null,null,null,null,null,null,null,null,50]
["2017-08-01",1388,"chq cancelled"]
["2017-08-01",1389,"Gordon Bickley-Congress-Directing",null,null,95.4,null,null,null,null,null,null,null,null,null,null,null,null,null,95.4,null,null,null,null,null,null,null,null,null,null,null,null,null,null,null,null,null,null,null,null,null,null,null,null,null,null,null,null,null,null,{"$f":"SUM(G119:AX119)","v":95.4}]
["2017-08-01",1390,"ABC-Congress-Eqipment",null,50,65,null,null,null,null,null,null,null,null,null,null,null,null,null,50,null,null,null,null,null,null,null,null,null,null,null,null,null,null,null,null,null,null,null,null,null,null,null,null,null,null,null,null,null,null,{"$f":"SUM(G120:AX120)","v":50}]
[null,null,"ABC-Congress-Boards",null,15,null,null,null,null,null,null,null,null,null,null,null,null,null,null,15,null,null,null,null,null,null,null,null,null,null,null,null,null,null,null,null,null,null,null,null,null,null,null,null,null,null,null,null,null,null,{"$f":"SUM(G121:AX121)","v":15}]
["2017-08-01",1391,"Larkhill-Congress-Eqipment",null,null,25,null,null,null,null,null,null,null,null,null,null,null,null,null,25,null,null,null,null,null,null,null,null,null,null,null,null,null,null,null,null,null,null,null,null,null,null,null,null,null,null,null,null,null,null,{"$f":"SUM(G122:AX122)","v":25}]
["2017-08-01",1392,"B.Lewis -Congress"]
[null,null,"Prizes",null,1520,1455.25,null,null,null,null,null,null,null,null,null,null,null,null,null,1520,null,null,null,null,null,null,null,null,null,null,null,null,null,null,null,null,null,null,null,null,null,null,null,null,null,null,null,null,null,null,{"$f":"SUM(G124:AX124)","v":1520}]
[null,null,"Prize donated by Jeff Morris",null,-100,null,null,null,null,null,null,null,null,null,null,null,null,null,null,-100,null,null,null,null,null,null,null,null,null,null,null,null,null,null,null,null,null,null,null,null,null,null,null,null,null,null,null,null,null,null,{"$f":"SUM(G125:AX125)","v":-100}]
[null,null,"Stationery",null,35.25,null,null,null,null,null,null,null,null,null,null,null,null,null,null,35.25,null,null,null,null,null,null,null,null,null,null,null,null,null,null,null,null,null,null,null,null,null,null,null,null,null,null,null,null,null,null,35.25]
["2017-08-01",1393,"I.Davies-tea and coffee",null,null,379.8,null,null,null,null,null,null,null,null,null,null,null,null,null,379.8,null,null,null,null,null,null,null,null,null,null,null,null,null,null,null,null,null,null,null,null,null,null,null,null,null,null,null,null,null,null,{"$f":"SUM(G127:AX127)","v":379.8}]
["2017-08-01",1394,"chq. Cancelled"]
["2017-08-01",1395,"S.Triggs-Congress-Prizes",null,null,91,null,null,null,null,null,null,null,null,null,null,null,null,null,91,null,null,null,null,null,null,null,null,null,null,null,null,null,null,null,null,null,null,null,null,null,null,null,null,null,null,null,null,null,null,{"$f":"SUM(G129:AX129)","v":91}]
["2017-08-01",1396,"CHBC-Congress-Equipment",null,null,40,null,null,null,null,null,null,null,null,null,null,null,null,null,40,null,null,null,null,null,null,null,null,null,null,null,null,null,null,null,null,null,null,null,null,null,null,null,null,null,null,null,null,null,null,40]
["2017-09-01",1397,"H.Tattersall-Treasurers Expenses-stationery and stamps",null,null,38.200000000000003,null,null,null,null,null,null,null,null,null,null,null,null,null,null,null,null,null,null,null,null,null,null,null,null,null,null,null,null,null,null,null,38.200000000000003,null,null,null,null,null,null,null,null,null,null,null,null,38.200000000000003]
["18/01/2017",1398,"Congress-replacing cash provided by Treasurer on day (income overstated)",null,null,42,null,null,null,null,null,null,null,null,null,null,null,null,null,42,null,null,null,null,null,null,null,null,null,null,null,null,null,null,null,null,null,null,null,null,null,null,null,null,null,null,null,null,null,null,42]
["18/01/2017",1399,"Congress-staff tip",null,null,5,null,null,null,null,null,null,null,null,null,null,null,null,null,5,null,null,null,null,null,null,null,null,null,null,null,null,null,null,null,null,null,null,null,null,null,null,null,null,null,null,null,null,null,null,5]
["18/01/2017",1400,"Congress printing",null,null,20,null,null,null,null,null,null,null,null,null,null,null,null,null,20,null,null,null,null,null,null,null,null,null,null,null,null,null,null,null,null,null,null,null,null,null,null,null,null,null,null,null,null,null,null,20]
["18/01/2017",1401,"I.Davies-Tollemache accommodation for final",null,null,69.8,null,null,null,null,null,null,null,null,null,null,null,null,null,null,null,null,null,null,null,null,69.8,null,null,null,null,null,null,null,null,null,null,null,null,null,null,null,null,null,null,null,null,null,null,null,69.8]
["18/01/2017",1402,"M.Byrne-Tollemache expenses",null,null,50,null,null,null,null,null,null,null,null,null,null,null,null,null,null,null,null,null,null,null,null,50,null,null,null,null,null,null,null,null,null,null,null,null,null,null,null,null,null,null,null,null,null,null,null,50]
["18/01/2017",1403,"M.Newman-Tollemache expenses",null,null,50,null,null,null,null,null,null,null,null,null,null,null,null,null,null,null,null,null,null,null,null,50,null,null,null,null,null,null,null,null,null,null,null,null,null,null,null,null,null,null,null,null,null,null,null,50]
["18/01/2017",1404,"C.Draper-Tollemache expenses",null,null,50,null,null,null,null,null,null,null,null,null,null,null,null,null,null,null,null,null,null,null,null,50,null,null,null,null,null,null,null,null,null,null,null,null,null,null,null,null,null,null,null,null,null,null,null,50]
["18/01/2017",1405,"A.Woodcock-Tollemache expenses",null,null,50,null,null,null,null,null,null,null,null,null,null,null,null,null,null,null,null,null,null,null,null,50,null,null,null,null,null,null,null,null,null,null,null,null,null,null,null,null,null,null,null,null,null,null,null,50]
["2017-04-02",1406,"A.Thornton-Gazette Cup-catering",null,199,295,null,null,null,null,null,null,null,null,null,199,null,null,null,null,null,null,null,null,null,null,null,null,null,null,null,null,null,null,null,null,null,null,null,null,null,null,null,null,null,null,null,null,null,null,199]
[null,null,"and prizes ",null,96,null,null,null,null,null,null,null,null,null,null,96,null,null,null,null,null,null,null,null,null,null,null,null,null,null,null,null,null,null,null,null,null,null,null,null,null,null,null,null,null,null,null,null,null,null,96]
["2017-04-02",1407,"B.Lewis-Gazette Cup-catering",null,null,170.11,null,null,null,null,null,null,null,null,null,170.11,null,null,null,null,null,null,null,null,null,null,null,null,null,null,null,null,null,null,null,null,null,null,null,null,null,null,null,null,null,null,null,null,null,null,170.11]
["2017-04-02",1408,"J.Lewis-Gazette-Directing",null,null,80,null,null,null,null,null,null,null,null,null,80,null,null,null,null,null,null,null,null,null,null,null,null,null,null,null,null,null,null,null,null,null,null,null,null,null,null,null,null,null,null,null,null,null,null,{"$f":"SUM(G143:AX143)","v":80}]
["2017-04-02",1409,"I.Davies-Cantor Cup-Trophies for 3 years",null,null,35.700000000000003,null,null,null,null,null,null,null,null,null,null,null,null,null,null,null,null,null,35.700000000000003,null,null,null,null,null,null,null,null,null,null,null,null,null,null,null,null,null,null,null,null,null,null,null,null,null,null,35.700000000000003]
["2017-04-02",1410,"V &A Hotel -Manchester Congress 2018 -Room Hire booking deposit",null,null,500,null,null,null,null,null,null,null,null,null,null,null,null,null,null,null,null,null,null,null,null,null,null,null,null,null,null,null,null,null,null,null,null,null,null,null,null,null,null,null,null,null,500,null,null,500]
["2017-10-02",1411,"R.Lighton-website expenses",null,null,88.62,null,null,null,null,null,null,null,null,null,null,null,null,null,null,null,null,null,null,null,null,null,null,88.62,null,null,null,null,null,null,null,null,null,null,null,null,null,null,null,null,null,null,null,null,null,88.62]
["2017-10-02",1412,"ABC-Gazette-Equipment Hire",null,null,45,null,null,null,null,null,null,null,null,null,45,null,null,null,null,null,null,null,null,null,null,null,null,null,null,null,null,null,null,null,null,null,null,null,null,null,null,null,null,null,null,null,null,null,null,45]
["27/02/2017",1413,"B.Lewis-Cantor Cup",null,null,329.4,null,null,null,null,null,null,null,null,null,null,null,null,null,null,null,null,null,null,null,null,null,null,null,null,null,null,null,null,null,null,null,null,null,null,null,null,null,null,null,null,null,null,null,null,0]
[null,null,"Cash Receipts",null,-188,null,null,null,null,null,null,null,null,null,null,null,null,null,null,null,null,null,null,-188,null,null,null,null,null,null,null,null,null,null,null,null,null,null,null,null,null,null,null,null,null,null,null,null,null,null,-188]
[null,null,"MBC-room hire",null,150,null,null,null,null,null,null,null,null,null,null,null,null,null,null,null,null,null,null,150,null,null,null,null,null,null,null,null,null,null,null,null,null,null,null,null,null,null,null,null,null,null,null,null,null,null,150]
[null,null,"J.Lewis-Directing",null,45,null,null,null,null,null,null,null,null,null,null,null,null,null,null,null,null,null,null,45,null,null,null,null,null,null,null,null,null,null,null,null,null,null,null,null,null,null,null,null,null,null,null,null,null,null,45]
[null,null,"Duplimated boards and hand records",null,15,null,null,null,null,null,null,null,null,null,null,null,null,null,null,null,null,null,null,15,null,null,null,null,null,null,null,null,null,null,null,null,null,null,null,null,null,null,null,null,null,null,null,null,null,null,15]
[null,null,"Printing",null,2,null,null,null,null,null,null,null,null,null,null,null,null,null,null,null,null,null,null,2,null,null,null,null,null,null,null,null,null,null,null,null,null,null,null,null,null,null,null,null,null,null,null,null,null,null,2]
[null,null,"Postage",null,4.4000000000000004,null,null,null,null,null,null,null,null,null,null,null,null,null,null,null,null,null,null,4.4000000000000004,null,null,null,null,null,null,null,null,null,null,null,null,null,null,null,null,null,null,null,null,null,null,null,null,null,null,4.4000000000000004]
[null,null,"Refreshments",null,88,null,null,null,null,null,null,null,null,null,null,null,null,null,null,null,null,null,null,88,null,null,null,null,null,null,null,null,null,null,null,null,null,null,null,null,null,null,null,null,null,null,null,null,null,null,88]
[null,null,"Prizes",null,213,null,null,null,null,null,null,null,null,null,null,null,null,null,null,null,null,null,null,213,null,null,null,null,null,null,null,null,null,null,null,null,null,null,null,null,null,null,null,null,null,null,null,null,null,null,213]
[null,null,null,"Total",{"$f":"SUM(E149:E156)","v":329.4},null,null,null,null,null,null,null,null,null,null,null,null,null,null,null,null,null,null,null,null,null,null,null,null,null,null,null,null,null,null,null,null,null,null,null,null,null,null,null,null,null,null,null,null,null,0]
["27/02/2017",1414,"Swiss GP Pairs-D.Stevenson-directing",null,null,181,null,null,null,null,null,null,null,null,null,null,null,181,null,null,null,null,null,null,null,null,null,null,null,null,null,null,null,null,null,null,null,null,null,null,null,null,null,null,null,null,null,null,null,null,181]
["27/02/2017",1415,"GP Pairs-J.Lewis",null,null,88,null,null,null,null,null,null,null,null,null,null,null,null,null,null,null,null,null,null,null,null,null,null,null,null,null,null,null,null,null,null,null,null,null,null,null,null,null,null,null,null,null,null,null,null,0]
[null,null,"Directing ",null,60,null,null,null,null,null,null,null,null,null,null,null,null,60,null,null,null,null,null,null,null,null,null,null,null,null,null,null,null,null,null,null,null,null,null,null,null,null,null,null,null,null,null,null,null,null,60]
[null,null,"Hands",null,18,null,null,null,null,null,null,null,null,null,null,null,null,18,null,null,null,null,null,null,null,null,null,null,null,null,null,null,null,null,null,null,null,null,null,null,null,null,null,null,null,null,null,null,null,null,18]
[null,null,"Caretaker tip",null,10,null,null,null,null,null,null,null,null,null,null,null,null,10,null,null,null,null,null,null,null,null,null,null,null,null,null,null,null,null,null,null,null,null,null,null,null,null,null,null,null,null,null,null,null,null,10]
["27/02/2017",1416,"GP Pairs-Rhona G.-Prizes",null,null,440,null,null,null,null,null,null,null,null,null,null,null,440,null,null,null,null,null,null,null,null,null,null,null,null,null,null,null,null,null,null,null,null,null,null,null,null,null,null,null,null,null,null,null,null,440]
["27/02/2017",1417,"GP Pairs-ABC-Equipment hire & duplimating",null,null,128,null,null,null,null,null,null,null,null,null,null,null,128,null,null,null,null,null,null,null,null,null,null,null,null,null,null,null,null,null,null,null,null,null,null,null,null,null,null,null,null,null,null,null,null,128]
["27/02/2017",1418,"M & CBA -Presidents Cup",null,null,255,null,null,null,null,null,null,null,null,null,null,null,null,null,null,null,null,null,null,null,null,null,null,null,null,null,null,null,null,null,null,null,null,null,null,null,null,null,null,null,null,null,255,null,null,255]
["19/03/2017",1419,"EBU-Pachabo entry",null,null,219,null,null,null,null,null,null,null,null,null,null,null,null,null,null,null,null,null,null,null,null,null,null,null,null,null,null,null,null,null,null,null,null,null,null,null,null,null,null,null,null,null,219,null,null,219]
["19/03/2017",1420,"EBU-Garden Cities",null,null,268,null,null,null,null,null,null,null,null,null,null,null,null,null,null,null,null,null,null,null,null,null,null,null,null,null,null,null,null,null,null,null,null,null,null,null,null,null,null,null,null,null,268,null,null,268]
["19/03/2017",1421,"EBU-Corwen Trophy",null,null,416,null,null,null,null,null,null,null,null,null,null,null,null,null,null,null,null,null,null,null,null,null,null,null,null,null,null,null,null,null,null,null,null,null,null,null,null,null,null,null,null,null,416,null,null,416]
["22/03/2017",1422,"Stuart Davies-Northern Bridge League",null,null,240,null,null,null,null,null,null,null,null,null,null,null,null,null,null,null,null,null,null,null,null,null,null,null,null,null,null,null,null,null,null,null,null,null,null,null,null,null,null,null,null,null,240,null,null,240]
["24/03/2017",1423,"J.Lewis - Equipment (Boards £33.37/cards in Boxes £23.86)",null,null,57.23,null,null,null,null,null,null,null,null,null,null,null,null,null,null,null,null,null,null,null,null,null,null,null,null,null,null,null,null,null,null,null,null,57.23,null,null,null,null,null,null,null,null,null,null,null,57.23]
["31/03/2017",1424,"K.Nelson - Cup Prizes",null,null,250,null,null,null,null,null,null,250,null,null,null,null,null,null,null,null,null,null,null,null,null,null,null,null,null,null,null,null,null,null,null,null,null,null,null,null,null,null,null,null,null,null,null,null,null,250]
[]
[null,"CREDITORS:"]
[null,"PAYMENTS AFTER Y/E (relating to 2016/17)"]
["27/04/2017",1426,"MBC-Cup & Plate Finals: Room Hire",null,null,228,null,null,null,null,null,null,228,null,null,null,null,null,null,null,null,null,null,null,null,null,null,null,null,null,null,null,null,null,null,null,null,null,null,null,null,null,null,null,null,null,null,null,null,null,228]
["27/04/2017",1429,"J.Lewis - Higson Cup/Plate Finals:",null,null,95,null,null,null,null,null,null,null,null,null,null,null,null,null,null,null,null,null,null,null,null,null,null,null,null,null,null,null,null,null,null,null,null,null,null,null,null,null,null,null,null,null,null,null,null,0]
[null,null,"Directing",null,80,null,null,null,null,null,null,null,80,null,null,null,null,null,null,null,null,null,null,null,null,null,null,null,null,null,null,null,null,null,null,null,null,null,null,null,null,null,null,null,null,null,null,null,null,null,80]
[null,null,"Hand Records",null,15,null,null,null,null,null,null,null,15,null,null,null,null,null,null,null,null,null,null,null,null,null,null,null,null,null,null,null,null,null,null,null,null,null,null,null,null,null,null,null,null,null,null,null,null,null,15]
[null,null,"ABC-paid for boards",null,25,null,null,null,null,null,null,null,25,null,null,null,null,null,null,null,null,null,null,null,null,null,null,null,null,null,null,null,null,null,null,null,null,null,null,null,null,null,null,null,null,null,null,null,null,null,25]
[null,null,"less:receipts for extra team players:",null,null,null,null,null,null,null,null,null,null,null,null,null,null,null,null,null,null,null,null,null,null,null,null,null,null,null,null,null,null,null,null,null,null,null,null,null,null,null,null,null,null,null,null,null,null,null,0]
[null,null,"St Titus",null,-10,null,null,null,null,null,null,-10,null,null,null,null,null,null,null,null,null,null,null,null,null,null,null,null,null,null,null,null,null,null,null,null,null,null,null,null,null,null,null,null,null,null,null,null,null,null,-10]
[null,null,"Mouldy Mutten",null,-10,null,null,null,null,null,null,-10,null,null,null,null,null,null,null,null,null,null,null,null,null,null,null,null,null,null,null,null,null,null,null,null,null,null,null,null,null,null,null,null,null,null,null,null,null,null,-10]
[null,null,"Four Dummies",null,-5,null,null,null,null,null,null,-5,null,null,null,null,null,null,null,null,null,null,null,null,null,null,null,null,null,null,null,null,null,null,null,null,null,null,null,null,null,null,null,null,null,null,null,null,null,null,-5]
["2017-05-05",1431,"J.Smith - Cup/Plate Finals - Directing",null,null,35,null,null,null,null,null,null,35,null,null,null,null,null,null,null,null,null,null,null,null,null,null,null,null,null,null,null,null,null,null,null,null,null,null,null,null,null,null,null,null,null,null,null,null,null,35]
["2017-06-05",1432,"J.Holland - Joint POY (player of Year 2016/17)",null,null,25,null,null,null,null,null,null,null,null,null,null,null,null,null,null,null,null,null,null,null,null,null,null,null,25,null,null,null,null,null,null,null,null,null,null,null,null,null,null,null,null,null,null,null,null,25]
["2017-06-05",1433,"A.Mould - Joint POY (player of Year 2016/17)",null,null,25,null,null,null,null,null,null,null,null,null,null,null,null,null,null,null,null,null,null,null,null,null,null,null,25,null,null,null,null,null,null,null,null,null,null,null,null,null,null,null,null,null,null,null,null,25]
["2017-06-05",1434,"A.Wiseberg -Intermediate POY (player of Year 2016/17)",null,null,50,null,null,null,null,null,null,null,null,null,null,null,null,null,null,null,null,null,null,null,null,null,null,null,50,null,null,null,null,null,null,null,null,null,null,null,null,null,null,null,null,null,null,null,null,50]
["2017-09-05",1435,"EBU-Inv 12579-Congress 2017 Masterpoints",null,null,303.95999999999998,null,null,null,null,null,null,null,null,null,null,null,null,null,303.95999999999998,null,null,null,null,null,null,null,null,null,null,null,null,null,null,null,null,null,null,null,null,null,null,null,null,null,null,null,null,null,null,303.95999999999998]
["2017-09-05",1436,"EBU-Inv 12748-Gazette Cup masterpoints",null,null,27,null,null,null,null,null,null,null,null,null,27,null,null,null,null,null,null,null,null,null,null,null,null,null,null,null,null,null,null,null,null,null,null,null,null,null,null,null,null,null,null,null,null,null,null,27]
["2017-09-05",1437,"EBU-Inv. 1437 - G.P.Swiss Pairs on 04/03/2017",null,null,373.86,null,null,null,null,null,null,null,null,null,null,null,373.86,null,null,null,null,null,null,null,null,null,null,null,null,null,null,null,null,null,null,null,null,null,null,null,null,null,null,null,null,null,null,null,null,373.86]
[null,1438,"cancelled"]
["16/05/2017",1439,"J.Morris-Expenses-Northern Counties Working Group-18/01/2017",null,null,60,null,null,null,null,null,null,null,null,null,null,null,null,null,null,null,null,null,null,null,null,null,null,null,null,null,null,null,null,null,null,null,null,null,null,null,null,null,null,null,null,60,null,null,null,60]
["16/05/2017",1440,"H.Tattersall-Postage/Stationery etc",null,null,47.18,null,null,null,null,null,null,null,null,null,null,null,null,null,null,null,null,null,null,null,null,null,null,null,null,null,null,null,null,null,null,null,47.18,null,null,null,null,null,null,null,null,null,null,null,null,47.18]
["Total Expenditure",null,null,{"$f":"SUM(D17:D190)","v":0},null,{"$f":"SUM(F10:F193)","v":20141.62},{"$f":"SUM(G10:G193)","v":0},-63.36,0,0,0,-25,633,15,0,755.11,0,1394.8600000000001,1519.88,7038.01,183,175.78,131.9,365.1,0,0,1506.7,200,88.62,161,212,0,220,0,0,180,119.1,125.88,279.43,509.56,57.8,0,280,0,0,0,60,2174,2104.25,-260,20141.62]
[]
["Cash",null,null,null,null,{"$f":"D194","v":0}]
[null,null,null,null,null,null,null,null,null,null,null,null,null,null,null,null,null,null,null,null,null,null,null,null,null,null,null,null,null,null,null,null,null,null,null,null,null,null,null,null,null,null,null,null,null,null,null,null,null,null,{"$f":"AY194+AY196","v":20141.62}]
["Total Expenditure",null,null,null,null,{"$f":"F194+F196","v":20141.62},null,null,null,null,null,null,null,null,null,null,null,null,null,null,null,null,null,null,null,null,null,null,null,null,null,null,null,null,null,null,null,null,null,null,null,null,null,null,null,null,null,null,null,null,{"$f":"F194-AY197","v":0}]
[]
[]
["Cheques not presented",null,"See above(all items in black, not red in Bankn column)",null,null,{"$f":"F171+F170+F168+F167+F166+F143+F38+F175+F176+F184+F185+F186+F187+F188+F189+F190+F192+F193","v":2560.23}]
[]
[null,null,null,null,null,null,null,null,null,null,489.6]

{"sheet":"Balance Sheet","index":3,"n_rows":24,"n_cols":15,"rows_kept":24,"cut":false,"hidden":false,"merged":[]}
["Manchester County Bridge Association"]
["Balance Sheet as at 31st March 2017"]
[]
[null,"2016-2017","2015-2016","2014 - 2015","2013 - 2014",null,"2012 - 2013",null,"2011 -2012",null,"2010 - 2011",null,"2009-2010",null,"2008-2009"]
[]
["Trophies",834,834,834,834,null,834,null,834,null,834,null,834,null,834]
["P.A.System ",0,0,0,0,null,67,null,167,null,267,null,267,null,267]
[]
["Fixed Assets",{"$f":"SUM(B6:B8)","v":834},{"$f":"C6+C7","v":834},{"$f":"D6+D7","v":834},{"$f":"SUM(E6:E8)","v":834},null,901,null,{"$f":"SUM(I6:I7)","v":1001},null,{"$f":"SUM(K6:K7)","v":1101},null,{"$f":"SUM(M6:M8)","v":1101},null,{"$f":"SUM(O6:O8)","v":1101}]
[]
["Bank Reserve Account - Skipton BS",{"$f":"'Reserve Accounts'!C9","v":6873.9800000000005},{"$f":"'Reserve Accounts'!D9","v":9793.7000000000007},11718.7,11644.18,null,11560.36,null,11586.88,null,11454.29,null,11239.54,null,11000]
["Current Account",{"$f":"Income!F188","v":8551.7199999999975},3760.23,3826.78,5774.25,null,8402.66,null,6779.46,null,4030.93,null,4246.38,null,2717.03]
["Cash in Hand",0,14,0,0,null,0,null,0,null,0,null,{"$f":"[1]Income!D137","v":0},null,200]
["Sundry Debtors - note 19",{"$f":"'Notes 2016-17'!E277","v":2683.18},1055,116.2,0,null,0,null,0,null,{"$f":"6+81","v":87},null,500,null,100]
["Sundry Creditors - note 20",{"$f":"-'Notes 2016-17'!E286","v":-3060.23},-3055.25,-2853.1,-2886.06,null,-2707.6300000000006,null,-2181.2399999999998,null,{"$f":"-([1]Income!F138)","v":0},null,-1301.6199999999999,null,-441.5]
[]
["Total Current Assets",{"$f":"SUM(B11:B16)","v":15048.649999999998},{"$f":"SUM(C11:C16)","v":11567.68},{"$f":"SUM(D11:D16)","v":12808.580000000002},{"$f":"SUM(E11:E16)","v":14532.37},null,{"$f":"SUM(G11:G16)","v":17255.39},null,{"$f":"SUM(I11:I16)","v":16185.1},null,{"$f":"SUM(K11:K15)","v":15572.220000000001},null,{"$f":"SUM(M11:M16)","v":14684.300000000003},null,{"$f":"SUM(O11:O16)","v":13575.53}]
[]
["Net Assets",{"$f":"B9+B17","v":15882.649999999998},{"$f":"C9+C17","v":12401.68},{"$f":"D9+D17","v":13642.580000000002},{"$f":"E9+E17","v":15366.37},null,{"$f":"G9+G17","v":18156.39},null,{"$f":"I9+I17","v":17186.099999999999},null,{"$f":"K9+K17","v":16673.22},null,{"$f":"M9+M17","v":15785.300000000003},null,{"$f":"O9+O17","v":14676.53}]
[]
["Reserves Brought Forward",{"$f":"C24","v":12401.680000000002},{"$f":"D24","v":13642.580000000002},{"$f":"E24","v":15366.37},{"$f":"G24","v":18156.39},0,17186.100000000002,0,14942.670000000004,0,15785.300000000003,0,14676.53,null,13331.5]
["Surplus/Deficit for the Year",{"$f":"'Income & Expenditure (2)'!D48","v":3480.97},-1240.9000000000001,{"$f":"D19-D21","v":-1723.7899999999991},{"$f":"E19-E21","v":-2790.0199999999986},null,{"$f":"G19-G21","v":970.28999999999724},{"$f":"H19-H21","v":0},2243.4299999999998,{"$f":"J19-J21","v":0},-842.63,{"$f":"L19-L21","v":0},{"$f":"M19-M21","v":1108.7700000000023},{"$f":"N19-N21","v":0},{"$f":"O19-O21","v":1345.0300000000007}]
[]
["Reserves Carried Forward",{"$f":"SUM(B21:B23)","v":15882.650000000001},{"$f":"SUM(C21:C23)","v":12401.680000000002},{"$f":"SUM(D21:D23)","v":13642.580000000002},{"$f":"SUM(E21:E23)","v":15366.37},null,{"$f":"SUM(G21:G23)","v":18156.39},null,{"$f":"SUM(I21:I23)","v":17186.100000000002},null,{"$f":"K21+K22","v":14942.670000000004},null,{"$f":"M21+M22","v":15785.300000000003},null,{"$f":"O21+O22","v":14676.53}]

{"sheet":"Opening Debtors & Creditors","index":4,"n_rows":44,"n_cols":6,"rows_kept":44,"cut":false,"hidden":false,"merged":[]}
["Manchester County Bridge Association"]
[]
["Sundry Creditors as at 31st March 2016"]
[null,"Unpresented Cheques:"]
[null,1320,"R.Lighton-website expenses",null,null,71.84]
[null,1321,"cheque destroyed"]
[null,1322,"EBU-Ben Franks P2P",null,null,14.76]
[null,1323,"K.Nelson - Cup Prizes",null,null,250]
[null,1326,"J.Lewis-Plate final-directing",null,null,80]
[null,1327,"J.Smith - Cup directing",null,null,80]
[null,1328,"ABC-Cup & Plate Finals:Hand records£16/Duplimating Brds £30",null,null,46]
[null,1329,"MBC-Cup & Plate Finals: 18 tables@£12",null,null,216]
[null,1330,"S.Davies: NBL-4 teams @ £75",null,null,300]
[null,1331,"Expert Player of Year-Michael Newman",null,null,50]
[null,1332," Joint Intermediate POY- Graham Campbell",null,null,25]
[null,1333,"Joint Intermediate POY - George Leigh",null,null,25]
[null,1334,"I.Davies-engraving 3 trophies for POY",null,null,19.5]
[null,1335,"H.Tattersall-repayt of cash provided for Gazette Cup",null,null,9.17]
[null,1336,"EBU Inv 574886-Congress License Fees",null,null,250.92]
[null,1337,"EBU inv 578684-License Fees Gazette=£28.44/League Div 7 last year=£61.20",null,null,89.64]
[null,1339,"EBU inv.580623-License Fees GP Pairs on 5/03/16",null,null,370.14]
[null,1340,"EBU inv.580977 - License Fees-Garden Cities final",null,null,260]
[null,1341,"EBU inv.579890 - Corwen Trophy entry fees-chq cancelled"]
[null,1342,"League cup engraving",null,null,50]
[null,1343,"Treasurers Expenses-2015/16-postage",null,null,22.68]
[null,1344,"Garden Cities final - ERROR",null,null,260]
[null,null,null,null,null,{"$f":"SUM(F5:F26)","v":2490.65}]
[]
[null,"Estimated EBU license fee for League 2015/16",null,null,null,489.6]
[]
[null,"Total Sundry Opening Creditors",null,null,null,{"$f":"F27+F29","v":2980.25}]
[]
[]
[null,"Sundry Creditors as at 31st March 2016:"]
[]
[null,"League - Net Overpayments",null,104]
[null,"Prepaid Room Bookings for 2016-17:"]
[null,"Summer Int. Pairs ",null,92]
[null,"GP Pairs 2016",null,50]
[null,"GP Teams 2016",null,{"$f":"184+50","v":234}]
[null,"Manchester Congress Deposit",null,500]
[null,null,"Total Prepayments:",{"$f":"SUM(D38:D41)","v":876}]
[]
[null,"Total Sundry Creditors as at 31st March 2016:",null,{"$f":"D36+D42","v":980}]

{"sheet":"Income & Expenditure (2)","index":5,"n_rows":52,"n_cols":8,"rows_kept":52,"cut":false,"hidden":false,"merged":[]}
["Manchester County Bridge Association"]
["Income & Expenditure Account to 31st March 2017",null,null,null,null,null,null,"Improvement "]
[null,null,null,"This Year",null,"Last Year",null,"in Income"]
["Income (net) - see notes for detail","Note",null,"2016-2017",null,"2015-2016",null,"£"]
[]
["EBU P2P Clubs",1,null,{"$f":"'Notes 2016-17'!E9","v":2872.6599999999994},null,2383.7800000000002,null,{"$f":"D6-F6","v":488.8799999999992}]
["Direct Members",null,null,{"$f":"Income!G172","v":235},null,0,null,{"$f":"D7-F7","v":235}]
["Affiliation Fees ","2c",null,{"$f":"'Notes 2016-17'!E26","v":252},null,251,null,1]
["Bridge For All",null,null,0,null,63,null,-63]
["Manchester League","2a",null,{"$f":"'Notes 2016-17'!E20","v":1937.8600000000001},null,1135.4000000000001,null,802.46]
["Higson Memorial Cup & Plate",3,null,{"$f":"'Notes 2016-17'!E42","v":-138},null,-177,null,39]
["Extra Players Fees in League & Cup ","2b",null,{"$f":"'Notes 2016-17'!E24","v":370},null,350,null,20]
["Gazette Trophy ",4,null,{"$f":"'Notes 2016-17'!E60","v":-10.110000000000014},null,45.39,null,-55.500000000000014]
["Merville Goldstone Cup (Pachabo Qualifier)",null,null,{"$f":"Income!R180","v":-80},null,-80,null,0]
["Green Point Pairs",5,null,{"$f":"'Notes 2016-17'!E77","v":517.13999999999987},null,329.86,null,187.27999999999986]
["Green Point Teams",6,null,{"$f":"'Notes 2016-17'!E96","v":560.11999999999989},null,312.77999999999997,null,247.33999999999992]
["Manchester Congress",7,null,{"$f":"'Notes 2016-17'!E117","v":275.28999999999996},null,-945.37,null,1220.6599999999999]
["Ben Franks",8,null,{"$f":"'Notes 2016-17'!E134","v":94.5},null,17.84,null,76.66]
["Summer Intermediate Pairs",9,null,{"$f":"'Notes 2016-17'!E150","v":64.220000000000027},null,20.3,null,43.92000000000003]
["Autumn Intermediate Pairs",10,null,{"$f":"'Notes 2016-17'!E166","v":140.10000000000002},null,6.13,null,133.97000000000003]
["Cantor Cup ",11,null,{"$f":"'Notes 2016-17'!E184","v":-181.10000000000002},null,-8.06,null,{"$f":"D21+D22-F21","v":8.0599999999999721}]
["Contribution from Cantor Reserve Account (Debtor)",11,null,181.1]
["Interest Skipton Building Society 2016 - 2017",null,null,{"$f":"'Reserve Accounts'!C7","v":80.28},null,75,null,5.2800000000000011]
["Prior Year Adjustments",18,null,{"$f":"'Notes 2016-17'!E245","v":260},null,347,null,-87]
["Total net Income",null,null,{"$f":"SUM(D6:D24)","v":7431.0599999999995},null,{"$f":"SUM(F6:F24)","v":4127.0500000000011},null,{"$f":"SUM(H6:H24)","v":3304.0099999999993}]
[]
["Expenses",null,null,null,null,null,null,"Improvement "]
[null,null,null,null,null,null,null,"in Costs:"]
["Northern Bridge League (NBL)",null,null,{"$f":"'                   Expenses'!AI194","v":0},null,300,null,{"$f":"F29-D29","v":300}]
["All Counties Super Final",null,null,{"$f":"'                   Expenses'!AJ194","v":180},null,180,null,{"$f":"F30-D30","v":0}]
["Derbyshire Friendly",null,null,{"$f":"'                   Expenses'!AH194","v":0},null,375.3,null,375.3]
["Representative Competitions/Matches",12,null,{"$f":"'Notes 2016-17'!E198","v":2138.6999999999998},null,3165.4,null,1026.7000000000003]
["Northern Counties Working Group",null,null,{"$f":"'                   Expenses'!AU194","v":60},null,60,null,0]
["Youth Budget",13,null,{"$f":"'                   Expenses'!AP194","v":0},null,200,null,200]
["Handbook Expenses",17,null,{"$f":"'                   Expenses'!AN194","v":509.56},null,0,null,-509.56]
["EBU Delegate Expenses",null,null,{"$f":"'                   Expenses'!AK194","v":119.1},null,369.9,null,250.79999999999998]
["Trophy Engraving/Trophy Repairs",null,null,{"$f":"'                   Expenses'!AS194","v":0},null,12,null,12]
["Printing/Postage/Stationery/Telephone/Travel",null,null,{"$f":"'                   Expenses'!AL194","v":125.88},null,45.58,null,-80.3]
["Retirement Gifts/Presentations/Receptions",14,null,{"$f":"'Notes 2016-17'!E215","v":181},null,189.5,null,8.5]
["Bridge stationery & equipment & Insurance",16,null,{"$f":"'                   Expenses'!AM194","v":279.43},null,71.099999999999994,null,-208.33]
["Seminars",15,null,{"$f":"-'Notes 2016-17'!E227","v":210},null,300,null,90]
["Web Site Costs",null,null,{"$f":"'                   Expenses'!AC194","v":88.62},null,71.84,null,-16.78]
["AGM Expenses",null,null,{"$f":"'                   Expenses'!AO194","v":57.8},null,27.33,null,-30.47]
["Depreciation",null,null,0,null,0,null,0]
[]
["Total Expenses",null,null,{"$f":"SUM(D29:D45)","v":3950.0899999999997},null,{"$f":"SUM(F29:F45)","v":5367.95},null,1417.8600000000001]
[]
["Surplus of Income over Expenditure (Profit)",null,null,{"$f":"D25-D46","v":3480.97},null,{"$f":"F25-F46","v":-1240.8999999999987},null,{"$f":"D48-F48","v":4721.869999999999}]
[null,null,null,null,null,null,null,"Total of "]
["Current Assets Balance from last year",null,null,12401.68,null,null,null,"Improvement "]
[null,null,null,null,null,null,null,"over last year"]
["Total Current Assets",null,null,{"$f":"SUM(D48:D51)","v":15882.65}]

{"sheet":"Notes 2016-17","index":6,"n_rows":286,"n_cols":8,"rows_kept":286,"cut":false,"hidden":false,"merged":[]}
["Manchester County Bridge Association"]
["Notes to the Accounts for the year ended 31st March 2017"]
[null,null,null,null,"2016/17"]
["Note"]
[]
[1,"EBU P2P Income"]
[null,"Received during year",null,null,{"$f":"Income!H180","v":2554.5799999999995}]
[null,"Debtor-Mar income",null,null,{"$f":"E272","v":318.08}]
[null,null,"Total",null,{"$f":"SUM(E7:E8)","v":2872.6599999999994}]
[]
["2a)","Manchester League 2016 - 2017"]
[null,"Income:"]
[null,"65  Teams @ £35 , plus 1 @£17.50",null,null,{"$f":"Income!I172+Income!L180","v":2292.5}]
[null,"Write-off yr-end balances:",null,null,{"$f":"Income!O180","v":32}]
[null,"Over-provision in 2015-16 for P2P re League",null,null,{"$f":"-'                   Expenses'!H194","v":63.36}]
[null,null,"Total",null,{"$f":"SUM(E13:E15)","v":2387.86}]
[null,"Expenses:"]
[null,"Estimated P2P charge from EBU - Note 17",null,null,450]
[]
[null,"Profit",null,null,{"$f":"E16-E18","v":1937.8600000000001}]
[]
["2b)","Extra Players,",null,null,{"$f":"Income!M180","v":360}]
[null," including £10 debtor below-Note 16",null,null,{"$f":"E273","v":10}]
[null,null,"Total",null,{"$f":"SUM(E22:E23)","v":370}]
[]
["2c)","Affiliation Fees",null,null,{"$f":"Income!K180","v":252}]
[]
[3,"Higson Memorial Cup & Plate "]
[null,"Income:"]
[null,"Gross Receipts (35 teams @ £15), plus 11 free",null,null,{"$f":"Income!J180+Income!N172","v":525}]
[null,null,"Total",null,{"$f":"SUM(E30:E30)","v":525}]
[null,"Expenses"]
[]
[null,"Prizes",null,null,250]
[null,"Director's Fees",null,null,115]
[null,"Room Hire",null,null,228]
[null,"Duplimating & Copying Hands - ABC",null,null,40]
[null,"Engraving (provision)",null,null,10]
[null,"Estimated P2P charge for final (Provision)",null,null,20]
[null,null,"Total",null,{"$f":"SUM(E34:E39)","v":663}]
[]
[null,"Loss",null,null,{"$f":"E31-E40","v":-138}]
[]
[]
["4","Gazette Trophy - Feb."]
[]
[null,"Income:",null,null,{"$f":"Income!Q172+20","v":765}]
[]
[null,"Expenses:"]
[null,"Hire of Hall",null,null,{"$f":"'                   Expenses'!P80","v":138}]
[null,"Tournament Director",null,null,{"$f":"'                   Expenses'!P143","v":80}]
[null,"Hire of Equipment - Altrincham Bridge Club",null,null,{"$f":"'                   Expenses'!P147","v":45}]
[null,"Refreshments for Players ",null,null,{"$f":"'                   Expenses'!P142+'                   Expenses'!P140","v":369.11}]
[null,"Caretaker gratuity",null,null,20]
[null,"EBU Masterpoints",null,null,{"$f":"'                   Expenses'!P189","v":27}]
[null,"Prizes",null,null,{"$f":"'                   Expenses'!P141","v":96}]
[]
[null,null,"Total",null,{"$f":"SUM(E50:E57)","v":775.11}]
[]
[null,"Loss",null,null,{"$f":"E47-E58","v":-10.110000000000014}]
[]
[5,"Manchester Green Points Pairs - March"]
[]
[null,"Income:",null,null,{"$f":"Income!S154+Income!S159","v":2010}]
[]
[null,"Expenses:"]
[null,"Hire of Hall",null,null,{"$f":"'                   Expenses'!R12+'                   Expenses'!R92","v":184}]
[null,"Director ",null,null,{"$f":"'                   Expenses'!R158+'                   Expenses'!R160","v":241}]
[null," Printing",null,null,{"$f":"-Income!S157","v":20}]
[null,"Hire of Equipment/Boards/Hand Records",null,null,{"$f":"'                   Expenses'!R164+'                   Expenses'!R161","v":146}]
[null,"EBU - One Day Event ",null,null,{"$f":"'                   Expenses'!R190","v":373.86}]
[null,"Refreshments for Players",null,null,{"$f":"-Income!S156","v":60}]
[null,"Prizes",null,null,{"$f":"'                   Expenses'!R163-Income!S155","v":458}]
[null,"Gratuity-Caretaker",null,null,{"$f":"'                   Expenses'!R162","v":10}]
[null,null,"Total",null,{"$f":"SUM(E67:E74)","v":1492.8600000000001}]
[]
[null,"Profit",null,null,{"$f":"E64-E75","v":517.13999999999987}]
[]
[6,"Manchester Green Points Teams - July"]
[]
[null,"Income:",null,null,{"$f":"Income!T62","v":2080}]
[]
[null,"Expenses:"]
[null,"Director - D Stevenson",null,null,{"$f":"'                   Expenses'!S62","v":181}]
[null,"Director - J Lewis",null,null,{"$f":"'                   Expenses'!S64","v":55}]
[null,"Altrincham Bridge Club-equipment & boards",null,null,{"$f":"'                   Expenses'!S67","v":138}]
[null,"Prizes",null,null,{"$f":"'                   Expenses'!S69","v":488}]
[null,"Hire of Hall",null,null,{"$f":"'                   Expenses'!S13","v":184}]
[null,"Refreshments",null,null,{"$f":"'                   Expenses'!S70","v":42}]
[null,"EBU Licence Fee",null,null,{"$f":"'                   Expenses'!S81","v":386.88}]
[null,"Printing flyers & Posters / Postage",null,null,{"$f":"'                   Expenses'!S71+'                   Expenses'!S66","v":35}]
[null,"Gratuity - Caretaker",null,null,{"$f":"'                   Expenses'!S65","v":10}]
[null,null,"Total",null,{"$f":"SUM(E84:E92)","v":1519.88}]
[null,"Total Expenses"]
[]
[null,"Profit",null,null,{"$f":"E81-E93","v":560.11999999999989}]
[]
[7,"Manchester Congress"]
[]
[null,"Income:"]
[null,"Entry Fees",null,null,{"$f":"Income!U136+Income!U137+Income!U138+Income!U140+Income!U145-'                   Expenses'!T132","v":6996}]
[null,"Prize donated by Jeff Morris on behalf of Manchester Bridge Club",null,null,{"$f":"-'                   Expenses'!T125","v":100}]
[null,null,"Total",null,{"$f":"SUM(E101:E102)","v":7096}]
[]
[null,"Expenses:"]
[null,"Tea and Coffee",null,null,{"$f":"'                   Expenses'!T127-Income!U141-Income!U146","v":104.50000000000001}]
[null,"Room Hire",null,null,{"$f":"'                   Expenses'!T14+'                   Expenses'!T84","v":3312}]
[null,"Printing / Postage / Stationery",null,null,{"$f":"'                   Expenses'!T74+'                   Expenses'!T97+'                   Expenses'!T126+'                   Expenses'!T134","v":137.05000000000001}]
[null,"Engraving",null,null,{"$f":"'                   Expenses'!T98","v":84}]
[null,"Directing",null,null,{"$f":"'                   Expenses'!T114+'                   Expenses'!T115+'                   Expenses'!T116+'                   Expenses'!T117+'                   Expenses'!T119","v":1133.2}]
[null,"Hire of Equipment / Boards / Hand records",null,null,{"$f":"'                   Expenses'!T120+'                   Expenses'!T121+'                   Expenses'!T122+'                   Expenses'!T130","v":130}]
[null,"Prizes",null,null,{"$f":"'                   Expenses'!T124+'                   Expenses'!T129","v":1611}]
[null,"Gratuity",null,null,{"$f":"'                   Expenses'!T133","v":5}]
[null,"EBU License Fee",null,null,{"$f":"'                   Expenses'!T188","v":303.95999999999998}]
[null,null,"Total",null,{"$f":"SUM(E106:E114)","v":6820.71}]
[]
[null,"Profit",null,null,{"$f":"E103-E115","v":275.28999999999996}]
[]
[8,"Ben Franks Trophy - Dec."]
[]
[null,"Income:",null,null,{"$f":"Income!V129","v":612}]
[]
[null,"Expenses:"]
[null,"Room Hire",null,null,{"$f":"'                   Expenses'!U89","v":156}]
[null,"Boards and Hand Records",null,null,{"$f":"-Income!V130","v":20}]
[null,"Prize Money",null,null,{"$f":"-Income!V133","v":200}]
[null,"Tournament Director ",null,null,{"$f":"-Income!V131","v":80}]
[null,"Refreshments",null,null,{"$f":"-Income!V132","v":34.5}]
[null,"Publicity & Postage",null,null,0]
[null,"EBU Masterpoints",null,null,{"$f":"'                   Expenses'!U86","v":18}]
[null,"Engraving",null,null,{"$f":"'                   Expenses'!U95","v":9}]
[null,null,"Total",null,{"$f":"SUM(E124:E131)","v":517.5}]
[]
[null,"Profit",null,null,{"$f":"E121-E132","v":94.5}]
[]
[9,"Summer Intermediate Pairs - June"]
[]
[null,"Income:",null,null,{"$f":"Income!W37-'                   Expenses'!V51","v":416}]
[]
[null,"Expenses:"]
[null,"Hire of Hall",null,null,{"$f":"'                   Expenses'!V11","v":92}]
[null,"Directing",null,null,{"$f":"'                   Expenses'!V52","v":45}]
[null,"Hire of Equipment / Duplimated Boards / Hand Records",null,null,{"$f":"'                   Expenses'!V53+'                   Expenses'!V57","v":30}]
[null,"Refreshments",null,null,{"$f":"'                   Expenses'!V59+'                   Expenses'!V58","v":28.5}]
[null,"Printing / Postage / Stationery",null,null,{"$f":"'                   Expenses'!V55+'                   Expenses'!V56","v":5.3}]
[null,"Prizes",null,null,{"$f":"'                   Expenses'!V60+'                   Expenses'!V61","v":139.97999999999999}]
[null,"Gratuities",null,null,{"$f":"'                   Expenses'!V54","v":11}]
[null,null,"Total",null,{"$f":"SUM(E141:E147)","v":351.78}]
[]
[null,"Profit",null,null,{"$f":"E138-E148","v":64.220000000000027}]
[]
[10,"Autumn Intermediate Pairs"]
[]
[null,"Income:",null,null,{"$f":"Income!X125+Income!X126-'                   Expenses'!W102","v":488}]
[]
[null,"Expenses:"]
[null,"Hire of Hall",null,null,{"$f":"'                   Expenses'!W79","v":92}]
[null,"Directing",null,null,{"$f":"'                   Expenses'!W103+'                   Expenses'!W104","v":21}]
[null,"Hire of Equipment / Duplimated Boards / Hand Records",null,null,{"$f":"'                   Expenses'!W105+'                   Expenses'!W107","v":32}]
[null,"Refreshments",null,null,{"$f":"'                   Expenses'!W108","v":39.5}]
[null,"Printing / Postage / Stationery",null,null,{"$f":"'                   Expenses'!W109+'                   Expenses'!W110","v":6.4}]
[null,"Prizes",null,null,{"$f":"'                   Expenses'!W111","v":147}]
[null,"Gratuities",null,null,{"$f":"'                   Expenses'!W106","v":10}]
[null,null,"Total",null,{"$f":"SUM(E157:E163)","v":347.9}]
[]
[null,"Profit",null,null,{"$f":"E154-E164","v":140.10000000000002}]
[]
[11,"Cantor Cup - Feb"]
[null,"A gift of £6k has been received from the Cantor family-to be kept in separate reserve account."]
[]
[null,"Income:"]
[null,"Entrance Fees ",null,null,{"$f":"Income!Y152-'                   Expenses'!X149","v":372}]
[]
[null,"Expenses:"]
[null,"Room Hire - MBC",null,null,{"$f":"'                   Expenses'!X150","v":150}]
[null,"Director - Joan Lewis",null,null,{"$f":"'                   Expenses'!X151","v":45}]
[null,"Hire of Equipment / Duplimated Boards / Hand Records",null,null,{"$f":"'                   Expenses'!X152","v":15}]
[null,"Refreshments",null,null,{"$f":"'                   Expenses'!X155","v":88}]
[null,"Printing / Postage / Stationery",null,null,{"$f":"'                   Expenses'!X153+'                   Expenses'!X154","v":6.4}]
[null,"Prizes",null,null,{"$f":"'                   Expenses'!X156","v":213}]
[null,"Trophies (for 3 years, but w/off here)",null,null,{"$f":"'                   Expenses'!X144","v":35.700000000000003}]
[null,null,"Total",null,{"$f":"SUM(E175:E181)","v":553.1}]
[]
[null,"Loss",null,null,{"$f":"E172-E182","v":-181.10000000000002}]
[null,"Contribution due from Cantor Cup Reserve Account",null,null,181.1]
[null,"Cost to MCBA",null,null,{"$f":"SUM(E184:E185)","v":0}]
[]
[12,"Expenses for Representative Competitions"]
[]
[null,"Pachabo Cup",null,null,{"$f":"'                   Expenses'!AE194","v":212}]
[null,"Garden Cities ",null,null,{"$f":"'                   Expenses'!AF194","v":0},null,"£260 fees for this year were charged to last year."]
[null,"Corwen - Entry",null,null,{"$f":"'                   Expenses'!AB194","v":200}]
[null,"President's Cup - Entry",null,null,{"$f":"'                   Expenses'!AG194","v":220}]
[null,"Tollemache Cup - Entry",null,null,{"$f":"'                   Expenses'!AA76","v":416}]
[null,"Expenses for Tollemache",null,null,{"$f":"'                   Expenses'!AA194-416","v":1090.7}]
[null,"Camrose",null,null,{"$f":"'                   Expenses'!AT194","v":0}]
[]
[null,"Total Cost",null,null,{"$f":"SUM(E190:E197)","v":2138.6999999999998}]
[]
[]
[13,"Youth Budget"]
[]
[null,"Youth Expenditure",null,null,{"$f":"'                   Expenses'!AP194","v":0}]
[]
[null,"Total Cost",null,null,{"$f":"SUM(E203:E203)","v":0}]
[]
[14,"Retirement Gifts/Presentations/Receptions"]
[]
[null,"Joint Players of the Year 2 @ £25",null,null,50]
[null," Intermediate Player of the Year ",null,null,50]
[null,"Present-Eve Lighthill",null,null,{"$f":"'                   Expenses'!AD99","v":39.5}]
[null,"Present-Joan Lewis",null,null,{"$f":"'                   Expenses'!AD112","v":21.5}]
[null,"Trophies engraved for POY's (Provision)",null,null,20]
[]
[null,"Total Cost",null,null,{"$f":"SUM(E209:E213)","v":181}]
[]
[15,"Seminars"]
[]
[null,"County B Team Seminar:"]
[null,"Income:","Total",null,{"$f":"Income!AC172","v":70}]
[]
[null,"Expenses:"]
[null,"Teaching",null,null,{"$f":"'                   Expenses'!AQ21","v":250}]
[null,"Room Hire",null,null,{"$f":"'                   Expenses'!AQ22","v":30}]
[null,null,"Total:",null,{"$f":"SUM(E223:E224)","v":280}]
[]
[null,"Total Cost",null,null,{"$f":"E220-E225","v":-210}]
[]
[16,"Equipment/Insurance/Bridge Stationery"]
[]
[null,"PA Sysytem-w/off all in 1st year",null,null,149]
[null,"Boards and Boxes- w/off all in 1st year",null,null,57.23]
[null,"Insurance",null,null,73.2]
[]
[null,"Total Cost",null,null,{"$f":"SUM(E231:E233)","v":279.43}]
[]
[17,"Handbook Expenses"]
[null,"Printing",null,null,{"$f":"'                   Expenses'!AN72+'                   Expenses'!AN44","v":485.55},null,"Note: This includes last year's costs, which were claimed late."]
[null,"Postage",null,null,{"$f":"'                   Expenses'!AN45+'                   Expenses'!AN91","v":24.009999999999998},null,null,"i.e. This is 2 year's costs."]
[]
[null,"Total Cost",null,null,{"$f":"SUM(E238:E239)","v":509.56}]
[]
[18,"Prior Year Adjustments"]
[null,"Error : Unpresented Chques overstated last year",null,null,{"$f":"-'                   Expenses'!AX42","v":260},null,"(Last year: Garden City costs overstated by a duplicated entry in unpresented cheques.)"]
[null,null,"Total",null,{"$f":"SUM(E244)","v":260}]
[]
[null,"Items charged in wrong year - Notes only:"]
[null,"Merville Goldstone Prizes - late claim this year for last year",null,null,-80]
[null,"Garden Cities entry fee charged to last year in error",null,null,260]
[null,"Over-provision for EBU League license for last year",null,null,63.36]
[null,"Handbook expenses for last year - late claim this year for last year",null,null,-261.98,null,"2 years costs charged to this year"]
[null,"NBL-charged to last year",null,null,300]
[null,null,"Total",null,{"$f":"SUM(E248:E252)","v":281.38}]
[]
[null,"Net effect on this year's profit:",null,null,{"$f":"E245+E253","v":541.38},"added"]
[]
[19,"Debtors and Prepayments:"]
[null,"Prepaid Room Bookings for 2017-18:"]
[null,"GP Teams -July 2017",null,null,{"$f":"'                   Expenses'!AV13+'                   Expenses'!AV93","v":184}]
[null,"Summer Int. Pairs - June 2017",null,null,{"$f":"'                   Expenses'!AV85","v":92}]
[null,"Manchester Congress Deposit",null,null,{"$f":"'                   Expenses'!AV145","v":500}]
[null,"Prepayments-Room Bookings",null,null,{"$f":"SUM(E259:E261)","v":776}]
[null,"Pre-paid Tournament Fees for 2017-18:"]
[null,"    ",null,null,255]
[null,"EBU-Pachabo entry",null,null,219]
[null,"EBU-Garden Cities",null,null,268]
[null,"EBU-Corwen Trophy",null,null,416]
[null,"Stuart Davies-Northern Bridge League",null,null,240]
[null,"Prepayments-Tournament Bookings",null,null,{"$f":"SUM(E264:E268)","v":1398}]
[null,"Total Prepayments:",null,null,{"$f":"E262+E269","v":2174}]
[null,"Debtors:"]
[null,"EBU P2P Income for March 2017",null,null,318.08]
[null,"Cup-extra players paid for in early April,17",null,null,10]
[null,"Cantor Cup re-imbursement due from Cantor Reserve A/c",null,null,{"$f":"-Income!Y180","v":181.10000000000002}]
[null,"Debtors Total",null,null,{"$f":"SUM(E272:E274)","v":509.18}]
[]
[null,"Total Debtors and Prepayments",null,null,{"$f":"E262+E269+E275","v":2683.18}]
[]
[20,"Creditors"]
[null,"Unpresented Cheques",null,null,{"$f":"'                   Expenses'!F201","v":2560.23}]
[null,"Estimated EBU license fee for League 2016/17",null,null,{"$f":"E18","v":450}]
[null,"Engraving (provision)-Higson Cup",null,null,10]
[null,"Estimated P2P charge for Cup final (Provision)",null,null,20]
[null,"Trophies engraved for POY's (Provision)",null,null,20]
[]
[null,null,null,null,{"$f":"SUM(E280:E284)","v":3060.23}]

{"sheet":"Cantor Accounts","index":7,"n_rows":22,"n_cols":9,"rows_kept":22,"cut":false,"hidden":false,"merged":[]}
[]
["CANTOR ACCOUNTS"]
["NatWest Reserve Account (Property of Cantor family, managed by MCBA):"]
[]
["Bank Balance.",null,"2016-17",null,null,"Income & Expenditure A/c:"]
[null,null,null,null,null,"Income:"]
["Balance B/F",null,{"$f":"D11","v":0},null,null,"Donation",null,null,6000]
["Cantor Donation",null,6000,null,null,"Interest",null,null,0.18]
["Interest",null,0.18,null,null,null,null,null,{"$f":"SUM(I7:I8)","v":6000.18}]
["Balance C/F",null,{"$f":"SUM(C7:C10)","v":6000.18},null,null,"Expenditure:"]
[null,null,null,null,null,"Contribution to MCBA in 2016-17",null,null,{"$f":"-'Notes 2016-17'!E185","v":-181.1}]
[null,null,null,null,null,"Note 10.  and Yr/end Creditor"]
[null,null,null,null,null,null,"Net Income",null,{"$f":"SUM(I9:I11)","v":5819.08}]
[]
[null,null,null,null,null,"Balance Sheet:"]
[null,null,null,null,null,"Asset-Bank Bal.",null,6000.18]
[null,null,null,null,null,"Liability-Owed to MCBA",null,{"$f":"I11","v":-181.1}]
[null,null,null,null,null,null,"Net Assets",{"$f":"SUM(H16:H17)","v":5819.08}]
[]
[null,null,null,null,null,"Reserves Brought Forward",null,0]
[null,null,null,null,null,"Surplus/Deficit for the Year",null,{"$f":"I13","v":5819.08}]
[null,null,null,null,null,null,"ReservesC/f",{"$f":"SUM(H20:H21)","v":5819.08}]

{"sheet":"League Calculations","index":8,"n_rows":10,"n_cols":3,"rows_kept":10,"cut":false,"hidden":false,"merged":[]}
["Balances Brought Forward:"]
["Underpayments",null,75]
["Overpayments",null,179]
["Net overpayment c/f into 2016/17",null,{"$f":"C3-C2","v":104}]
[]
["Reconciliation to League Spread-sheet"]
["The totals of every column in the League ss agrees to every column total in the cash-book exactly."]
["Final Balances:"]
["Final  net of overpaid less underpaid balances:",null,32]
["These balances will be written off and added to League Income, so that the new Treasurer can start with a clean slate."]